Workbook

Sheet Personal GHG Calculator
A2: Your Current Household Emissions
A4: The Basics
A5: How many people live in your home?
D6: What is your zip code?
A7: What is your household's primary heating source?
C8: Enter 1 for natural gas, 2 for electric heat, 3 for oil, 4 for propane, 5 for wood, or 6 if you do not heat your house
A10: Household Vehicles
F11: Enter your data | J11: Estimated pounds of carbon dioxide/year | N11: Equation explanations
A12: How many vehicles does your household have?
B15: Vehicle 1 | E15: Miles driven | H15: enter 1 if this represents miles per week or 2 if it's miles per year | K15: =average_mpg -> 24.8 | L15: Miles per Gallon
B17: Vehicle 2 | E17: Miles driven | H17: enter 1 if this represents miles per week or 2 if it's miles per year | K17: =average_mpg -> 24.8 | L17: Miles per Gallon
B19: Vehicle 3 | E19: Miles driven | H19: enter 1 if this represents miles per week or 2 if it's miles per year | K19: =average_mpg -> 24.8 | L19: Miles per Gallon
B21: Vehicle 4 | D21: 0 | E21: Miles driven | H21: enter 1 if this represents miles per week or 2 if it's miles per year | K21: =average_mpg -> 24.8 | L21: Miles per Gallon
B23: Vehicle 5 | D23: 0 | E23: Miles driven | H23: enter 1 if this represents miles per week or 2 if it's miles per year | K23: =average_mpg -> 24.8 | L23: Miles per Gallon
A26: 208 miles/week is about average in the United States per vehicle. | D26: If you don’t know your car’s fuel economy, you can look it up at https://www.fueleconomy.gov The national average is 24.8 miles per gallon. | J26: =IF(D15=0,0,IF(G15=1,(D15*52)/K15*EF_passenger_vehicle*(nonCO2_vehicle_emissions_ratio),(D15)/K15*EF_passenger_vehicle*(nonCO2_vehicle_emissions_ratio)))+IF(D17=0,0,IF(G17=1,(D17*52)/K17*EF_passenger_vehicle*(nonCO2_vehicle_emissions_ratio),(D17)/K17*EF_passenger_vehicle*(nonCO2_vehicle_emissions_ratio)))+IF(D19=0,0,IF(G19=1,(D19*52)/K19*EF_passenger_vehicle*(nonCO2_vehicle_emissions_ratio),(D19)/K19*EF_passenger_vehicle*(nonCO2_vehicle_emissions_ratio)))+IF(D21=0,0,IF(G21=1,(D21*52)/K21*EF_passenger_vehicle*(nonCO2_vehicle_emissions_ratio),(D21)/K21*EF_passenger_vehicle*(nonCO2_vehicle_emissions_ratio)))+IF(D23=0,0,IF(G23=1,(D23*52)/K23*EF_passenger_vehicle*(nonCO2_vehicle_emissions_ratio),(D23)/K23*EF_passenger_vehicle*(nonCO2_vehicle_emissions_ratio)))+J29 -> 0 | K26: Pounds of carbon dioxide/year | N26: Emissions = Sum of vehicles 1-5: (number of miles driven per week for vehicle #1 * weeks in a year) / average household fuel efficiency of vehicle #1 * pounds of CO2 emitted per gallon * emissions of greenhouse gases other than CO2
J27: 8,472 pounds is about average per vehicle over a year
A29: Do you perform regular maintenance on your vehicles? | J29: =(IF(F29=2,IF(G15=1,(D15*52)/K15*EF_passenger_vehicle*(nonCO2_vehicle_emissions_ratio),(D15)/K15*EF_passenger_vehicle*(nonCO2_vehicle_emissions_ratio))*vehicle_efficiency_improvements+IF(G17=1,(D17*52)/K17*EF_passenger_vehicle*(nonCO2_vehicle_emissions_ratio),(D17)/K17*EF_passenger_vehicle*(nonCO2_vehicle_emissions_ratio))*vehicle_efficiency_improvements+IF(G19=1,(D19*52)/K19*EF_passenger_vehicle*(nonCO2_vehicle_emissions_ratio),(D19)/K19*EF_passenger_vehicle*(nonCO2_vehicle_emissions_ratio))*vehicle_efficiency_improvements+IF(G21=1,(D21*52)/K21*EF_passenger_vehicle*(nonCO2_vehicle_emissions_ratio),(D21)/K21*EF_passenger_vehicle*(nonCO2_vehicle_emissions_ratio))*vehicle_efficiency_improvements+IF(G23=1,(D23*52)/K23*EF_passenger_vehicle*(nonCO2_vehicle_emissions_ratio),(D23)/K23*EF_passenger_vehicle*(nonCO2_vehicle_emissions_ratio))*vehicle_efficiency_improvements,"0")) -> 0 | N29: Emissions = If no is selected: Sum of vehicles 1-5: If vehicle #1's input is miles per week, then, (miles driven per week by vehicle #1 * number of weeks in a year) / vehicle #1's fuel efficiency * pounds of CO2 emitted per gallon * emissions of greenhouse gases other than CO2 * percent decrease in fuel efficiency from not performing regular maintenance on your vehicles If vehicle #1's input is miles per year, then, miles driven per year by vehicle #1 / vehicle #1's fuel efficiency * pounds of CO2 emitted per gallon * emissions of greenhouse gases other than CO2 * percent decrease in fuel efficiency from not performing regular maintenance on your vehicles
F30: enter 1 for yes and 2 for no | J30: pounds/yr
F31: Regular maintenance includes: keeping your engine properly tuned and tires properly inflated | N31: Economic savings = If action is selected: Sum of vehicles 1-5: If vehicle #1's input is miles per week, then, (miles driven per week by vehicle #1 * number of weeks in a year) / vehicle #1's fuel efficiency * price per gallon of gasoline * percent increase in fuel efficiency from performing regular maintenance on your vehicles If vehicle #1's input is miles per year, then, miles driven per year by vehicle #1 / vehicle #1's fuel efficiency * price per gallon of gasoline * percent increase in fuel efficiency from performing regular maintenance on your vehicles
A34: Home Energy
F35: Enter your data | J35: Estimated pounds of carbon dioxide/year | N35: Equation explanations
H36: Enter 1 for dollars, 2 for thousand cubic feet, 3 for therms
A37: How much natural gas does your household use per month? | J37: =IF(H37=1,(F37/Natural_gas_cost_1000CF)*EF_natural_gas*12,IF(H37=2,EF_natural_gas*F37*12,IF(H37=3,EF_natural_gas_therm*F37*12))) -> FALSE | K37: Pounds of carbon dioxide/year | N37: Emissions = If input is dollars, then, (average monthly gas bill per month / price per thousand cubic feet) pounds of CO2 per thousand cubic feet of natural gas * months in a year If input is thousand cubic feet, then, (average number of cubic feet consumed per month * pounds of C02 per thousand cubic feet of natural gas * months in a year If input is therms, (average number of therms consumed per month / pounds of CO2 per therm of natural gas * months in a year
A38: If you enter your monthly consumption in thousand cubic feet, you'll get a more accurate estimate. If you enter dollars, our calculations assume you pay $15.23/thousand cubic feet. | F38: $28 is about average in the United States for a household of one person. | J38: 2,730 pounds is about average for a household of one person over a year.
H40: Enter 1 for dollars, 2 for kilowatt-hours
A42: How much electricity does your household use per month? | H42: 1 | J42: =IF(F45=2,IF(H42=1,(F42/cost_per_kWh)*e_factor_value*12,IF(H42=2,(F42)*e_factor_value*12)),IF(H42=1,((F42/cost_per_kWh)*e_factor_value*12)*(1-F49),IF(H42=2,(F42)*12*(1-F49)*e_factor_value))) ->  | K42: Pounds of carbon dioxide equivalent/year | N42: Emissions = If input is dollars, then, (average monthly electric bill / price per kWh) * electricity emission factor * months in a year If input is kWh, then, average number of kWh consumed per month * electricity emission factor * months in a year If uses green power, then, multiply by (1-percentage of green power used.
A43: If you enter your average kilowatt-hours, you'll get a more accurate estimate. If you enter dollars, our calculations assume that you pay 16.09 cents/kWh. | F43: $56 is about average in the United States for a household of one person. | J43: 3,513 pounds is about average in the U.S. for a household of one person over a year.
A45: Does your household currently purchase green power? | F45: 1 | H45: Enter 1 for yes, 2 for no
A46: Green power can often be bought through your local utility or through a green power marketer. For a description of green power visit (http://www.epa.gov/greenpower/whatis/index.htm).
A49: If so, what portion of your household's total purchased electricity use is green power?
A50: Enter 100% if you buy all of your electricity as green power.
H52: Enter 1 for dollars, 2 for gallons
A53: How much fuel oil does your household use per month? | J53: =IF(H53=1,(F53/fuel_oil_cost)*EF_fuel_oil_gallon*12,IF(H53=2,EF_fuel_oil_gallon*F53*12)) -> FALSE | K53: Pounds of carbon dioxide/year | N53: Emissions = If input is dollars, then, (average monthly fuel oil bill / price per gallon) fuel oil emission factor * months in a year If input is gallons, then, (average gallons of fuel oil consumed per month) fuel oil emission factor * months in a year
A54: Divide your annual fuel oil consumption (in gallons or dollars) by 12 to obtain a monthly average. If you enter your monthly fuel oil use in gallons, you'll get a more accurate estimate. If you enter dollars, our calculations assume that you pay $4.27/gallon. | F54: $72 is about average in the United States for a household of one person. | J54: 4,596 pounds is about average for a household of one person over a year.
H56: Enter 1 for dollars, 2 for gallons
A57: How much propane does your household use per month? | J57: =IF(H57=1,(F57/propane_cost)*EF_propane*12,IF(H57=2,EF_propane*F57*12)) -> FALSE | K57: Pounds of carbon dioxide/year | N57: Emissions = If input is dollars, then, (average monthly propane bill / price per gallon) propane emission factor * months in a year If input is gallons, then, (average gallons of propane consumed per month) propane emission factor * months in a year
A58: If you enter your monthly propane use in gallons, you'll get a more accurate estimate. If you enter dollars, our calculations assume that you pay $2.56/gallon. | F58: $33 is about average in the United States for a household of one person. | J58: 1,955 pounds is about average for a household of one person over a year.
A60: Waste
F61: Enter your data | J61: Estimated pounds of carbon dioxide/year | N61: Equation explanations
A63: Based on the number of people in your household, the box at right shows your estimated greenhouse gas emissions from waste. However, if you currently recycle certain materials, your waste emissions may be lower. | F63: Total Waste Emissions Before Recycling | J63: =F5*average_waste_emissions -> 0 | K63: Pounds of carbon dioxide equivalent/year | N63: Emissions = number of people in household * average lb CO2 equivalent. generated from waste per person per year
A64: Which of the following products do you currently recycle in your household? | J64: 822 pounds is about average for a household of one person over a year.
A65: Do you recycle aluminum and steel cans? | J65: =IF(F65=1,$F$5*metal_recycling_avoided_emissions,0) -> 0 | K65: Pounds of carbon dioxide equivalent/year | N65: If your household recycles metal, then, number of people in household * average number of pounds of CO2 equivalent per person per year that could be saved by aluminum and steel cans | U65: 1 | V65: =IF(U65=1,W65,0) -> Metal | W65: Metal
F66: enter 1 for yes and 2 for no
A67: Do you recycle plastic? | J67: =IF(F67=1,$F$5*plastic_recycling_avoided_emissions,0) -> 0 | K67: Pounds of carbon dioxide equivalent/year | N67: If your household recycles plastic, then, number of people in household * average number of pounds of CO2 equivalent per person per year that could be saved by recycling plastic | U67: 1 | V67: =IF(U67=1,W67,0) -> Plastic | W67: Plastic
F68: enter 1 for yes and 2 for no
A69: Do you recycle glass? | J69: =IF(F69=1,$F$5*glass_recycling_avoided_emissions,0) -> 0 | K69: Pounds of carbon dioxide equivalent/year | N69: If your household recycles glass, then, number of people in household * average number of pounds of CO2 equivalent per person per year that could be saved by recycling glass | U69: 1 | V69: =IF(U69=1,W69,0) -> Glass | W69: Glass
F70: enter 1 for yes and 2 for no
A71: Do you recycle newspaper? | J71: =IF(F71=1,$F$5*newspaper_recycling_avoided_emissions,0) -> 0 | K71: Pounds of carbon dioxide equivalent/year | N71: If your household recycles newspaper, then, number of people in household * average number of pounds of CO2 equivalent per person per year that could be saved by recycling newspaper | U71: 0 | V71: =IF(U71=1,W71,0) -> 0 | W71: Newspaper
F72: enter 1 for yes and 2 for no
A73: Do you recycle magazines? | J73: =IF(F73=1,$F$5*mag_recycling_avoided_emissions,0) -> 0 | K73: Pounds of carbon dioxide equivalent/year | N73: If your household recycles magazines, then, number of people in household * average number of pounds of CO2 equivalent per person per year that could be saved by aluminum and steel cans | U73: 0
F74: enter 1 for yes and 2 for no | U74: =SUM(U68:U72) -> 1 | V74: =IF(V71>0,V71&", ","")&IF(V69>0,V69&", ","")&IF(V67>0,V67&", ","")&IF(V65>0,V65&", ","") -> Glass, Plastic, Metal, | W74: =IF(V71=0,W71&", ","")&IF(V69=0,W69&", ","")&IF(V67=0,W67&", ","")&IF(V65=0,W65&", ","") -> Newspaper,
F77: Total Waste Emissions After Recycling | J77: =J63+(SUM(J65,J67,J69,J71,J73)) -> 0 | K77: Pounds of carbon dioxide equivalent/year | N77: Total waste emissions before recycling + emission reduction from recycling newspaper + emission reduction from recycling glass + emission reduction from recycling plastic + emission reduction from recycling metal
A82: Your Total Emissions | J82: =SUM(J26,J37,J42,J53,J57,J77) ->  | K82: Pounds of carbon dioxide equivalent/year | N82: Estimates of greenhouse gas emission benefits from recycling newspaper, glass, plastic, metal, and magazines were developed using national waste data and life-cycle greenhouse gas emission factors for waste management. Calculations assume that it would be possible for households to recycle 100 percent of all recyclable materials generated as waste. For example, if you indicate that you recycle newspapers, this calculator assumes that you recycle 100 percent of the newspapers you receive.
J83: 21,999 pounds is about average in the United States for a household of one person over a year | N83: Sum of emissions from natrual gas, electricity, fuel oil, propane, waste, and vehicle.
A87: What You Can Do to Reduce Your Emissions
A88: On the Road
A89: Suggested actions | G89: Cost* (Dollars) | H89: Estimated Savings (Dollars) | J89: Estimated Savings (CO2 Emissions)
A91: Reduce the number of miles you drive vehicle 1 by | G91: no cost | H91: =IF(F91=1,D91*52*cost_per_mile,0) -> 0 | J91: =IF(F91=1,IF(F109=1,(((D91*52)/(K15+D109))*EF_passenger_vehicle*(nonCO2_vehicle_emissions_ratio)),((D91*52)/K15*EF_passenger_vehicle*(nonCO2_vehicle_emissions_ratio))),0) -> 0 | L91: =J91/J82 ->  | N91: Emission reduction = If action is selected: (miles reduced per week for vehicle #1 * weeks in a year) / vehicle #1's fuel efficiency * pounds of CO2 emitted per gallon * emissions of greenhouse gases other than CO2 If vehicle replace the above calculation is done with improved gas mileage.
A92: miles per week. Will you take this action? | F92: enter 1 for yes, 2 for no, and 3 if you're already taking this action. | H92: annual savings | J92: pounds/yr | L92: percent of total emissions
A93: Reduce the number of miles you drive vehicle 2 by | G93: no cost | H93: =IF(F93=1,D93*52*cost_per_mile,0) -> 0 | J93: =IF(F93=1,IF(F111=1,(((D93*52)/(K17+D111))*EF_passenger_vehicle*(nonCO2_vehicle_emissions_ratio)),((D93*52)/K17*EF_passenger_vehicle*(nonCO2_vehicle_emissions_ratio))),0) -> 0 | L93: =J93/J82 ->  | N93: Economic savings = If action is selected: (miles reduced per week for vehicle #1 * weeks in a year) / vehicle #1's fuel efficiency * average cost per mile to drive
A94: miles per week. Will you take this action? | F94: enter 1 for yes, 2 for no, and 3 if you're already taking this action. | H94: annual savings | J94: pounds/yr | L94: percent of total emissions
A95: Reduce the number of miles you drive vehicle 3 by | G95: no cost | H95: =IF(F95=1,D95*52*cost_per_mile,0) -> 0 | J95: =IF(F95=1,IF(F113=1,(((D95*52)/(K19+D113))*EF_passenger_vehicle*(nonCO2_vehicle_emissions_ratio)),((D95*52)/K19*EF_passenger_vehicle*(nonCO2_vehicle_emissions_ratio))),0) -> 0 | L95: =J95/J82 -> 
A96: miles per week. Will you take this action? | F96: enter 1 for yes, 2 for no, and 3 if you're already taking this action. | H96: annual savings | J96: pounds/yr | L96: percent of total emissions
A97: Reduce the number of miles you drive vehicle 4 by | F97: 2 | G97: no cost | H97: =IF(F97=1,D97*52*Assumptions!#REF!,0) -> 0 | J97: =IF(F97=1,IF(F115=1,(((D97*52)/(K21+D115))*EF_passenger_vehicle*(nonCO2_vehicle_emissions_ratio)),((D97*52)/K21*EF_passenger_vehicle*(nonCO2_vehicle_emissions_ratio))),0) -> 0 | L97: =J97/J82 -> 
A98: miles per week. Will you take this action? | F98: enter 1 for yes, 2 for no, and 3 if you're already taking this action. | H98: annual savings | J98: pounds/yr | L98: percent of total emissions
A99: Reduce the number of miles you drive vehicle 5 by | F99: 2 | G99: no cost | H99: =IF(F99=1,D99*52*Assumptions!#REF!,0) -> 0 | J99: =IF(F99=1,IF(F117=1,(((D99*52)/(K23+D117))*EF_passenger_vehicle*(nonCO2_vehicle_emissions_ratio)),((D99*52)/K23*EF_passenger_vehicle*(nonCO2_vehicle_emissions_ratio))),0) -> 0 | L99: =J99/J82 -> 
A100: miles per week. Will you take this action? | F100: enter 1 for yes, 2 for no, and 3 if you're already taking this action. | H100: annual savings | L100: percent of total emissions
F102: The Fuel Economy Web site (www.fueleconomy.gov) can help you find efficient vehicles.
A104: Will you perform regular maintenance on your vehicles? | G104: $ | H104: =(IF(F104=3,IF(G15=1,(D15*52)/K15*gas_cost_gallon,(D15)/K15*gas_cost_gallon)*vehicle_efficiency_improvements+IF(G17=1,(D17*52)/K17*gas_cost_gallon,(D17)/K17*gas_cost_gallon)*vehicle_efficiency_improvements+IF(G19=1,(D19*52)/K19*gas_cost_gallon,(D19)/K19*gas_cost_gallon)*vehicle_efficiency_improvements+IF(G21=1,(D21*52)/K21*gas_cost_gallon,(D21)/K21*gas_cost_gallon)*vehicle_efficiency_improvements+IF(G23=1,(D23*52)/K23*gas_cost_gallon,(D23)/K23*gas_cost_gallon)*vehicle_efficiency_improvements,"0")) -> 0 | J104: =(IF(F29=1,IF(G15=1,(D15*52)/K15*EF_passenger_vehicle*(nonCO2_vehicle_emissions_ratio),(D15)/K15*EF_passenger_vehicle*(nonCO2_vehicle_emissions_ratio))*vehicle_efficiency_improvements+IF(G17=1,(D17*52)/K17*EF_passenger_vehicle*(nonCO2_vehicle_emissions_ratio),(D17)/K17*EF_passenger_vehicle*(nonCO2_vehicle_emissions_ratio))*vehicle_efficiency_improvements+IF(G19=1,(D19*52)/K19*EF_passenger_vehicle*(nonCO2_vehicle_emissions_ratio),(D19)/K19*EF_passenger_vehicle*(nonCO2_vehicle_emissions_ratio))*vehicle_efficiency_improvements+IF(G21=1,(D21*52)/K21*EF_passenger_vehicle*(nonCO2_vehicle_emissions_ratio),(D21)/K21*EF_passenger_vehicle*(nonCO2_vehicle_emissions_ratio))*vehicle_efficiency_improvements+IF(G23=1,(D23*52)/K23*EF_passenger_vehicle*(nonCO2_vehicle_emissions_ratio),(D23)/K23*EF_passenger_vehicle*(nonCO2_vehicle_emissions_ratio))*vehicle_efficiency_improvements,"0")) -> 0 | L104: =J104/$J$82 ->  | N104: Emission reduction = If action is selected: Sum of vehicles 1-5: If vehicle #1's input is miles per week, then, (miles driven per week by vehicle #1 * number of weeks in a year) / vehicle #1's fuel efficiency * pounds of CO2 emitted per gallon * emissions of greenhouse gases other than CO2 * percent increase in fuel efficiency from performing regular maintenance on your vehicles If vehicle #1's input is miles per year, then, miles driven per year by vehicle #1 / vehicle #1's fuel efficiency * pounds of CO2 emitted per gallon * emissions of greenhouse gases other than CO2 * percent increase in fuel efficiency from performing regular maintenance on your vehicles
F105: enter 1 for yes, 2 for no, and 3 if you are already taking this action. | H105: annual savings | J105: pounds/yr | L105: percent of total emissions
F106: Regular maintenance includes: keeping your engine properly tuned, tires properly inflated, and using the manufacturer's recommended grade of motor oil. | N106: Economic savings = If action is selected: Sum of vehicles 1-5: If vehicle #1's input is miles per week, then, (miles driven per week by vehicle #1 * number of weeks in a year) / vehicle #1's fuel efficiency * price per gallon of gasoline * percent increase in fuel efficiency from performing regular maintenance on your vehicles If vehicle #1's input is miles per year, then, miles driven per year by vehicle #1 / vehicle #1's fuel efficiency * price per gallon of gasoline * percent increase in fuel efficiency from performing regular maintenance on your vehicles
A109: Replace vehicle 1 with one that gets | G109: $$$ | H109: =IF(F109=1,IF(G15=1,((D15*52/K15)*gas_cost_gallon)-((D15*52/(K15+D109))*gas_cost_gallon),IF(G15=2,(D15/K15*gas_cost_gallon)-(D15/(K15+D109)*gas_cost_gallon))),0) -> 0 | J109: =IF(F109=1,(IF(G15=1,(D15*52)/K15*EF_passenger_vehicle*(nonCO2_vehicle_emissions_ratio),(D15)/K15*EF_passenger_vehicle*(nonCO2_vehicle_emissions_ratio))-IF(G15=1,(D15*52)/(K15+D109)*EF_passenger_vehicle*(nonCO2_vehicle_emissions_ratio),(D15)/(K15+D109)*EF_passenger_vehicle*(nonCO2_vehicle_emissions_ratio))),0) -> 0 | L109: =J109/J82 ->  | N109: Emission reduction = If action is selected: If vehicle #1's input is miles per week (number of miles driven per week for vehicle #1 * weeks in a year) / vehicle #1's fuel efficiency * pounds of CO2 emitted per gallon * emissions of greenhouse gases other than CO2) - (miles driven per week * weeks in a year) / your current car's fuel efficiency + increased fuel efficiency) * pounds of CO2 emitted per gallon * emissions of greenhouse gases other than CO2) If vehicle #1's input is miles per year (number of miles driven per year) / vehicle #1's fuel efficiency * pounds of CO2 emitted per gallon * emissions of greenhouse gases other than CO2) - (miles driven per week * weeks in a year) / vehicle #1's fuel efficiency + increase in vehicle #1's fuel efficiency) * pounds of CO2 emitted per gallon * emissions of greenhouse gases other than CO2)
A110: more miles per gallon. Will you take this action? (see EPA's Green Vehicle Guide for additional information: http://www.epa.gov/greenvehicles/Index.do) | F110: enter 1 for yes, 2 for no, and 3 if you're already taking this action. | H110: annual savings | J110: pounds/yr | L110: percent of total emissions
A111: Replace vehicle 2 with one that gets | G111: $$$ | H111: =IF(F111=1,IF(G17=1,((D17*52/K17)*gas_cost_gallon)-((D17*52/(K17+D111))*gas_cost_gallon),IF(G17=2,(D17/K17*gas_cost_gallon)-(D17/(K17+D111)*gas_cost_gallon))),0) -> 0 | J111: =IF(F111=1,(IF(G17=1,(D17*52)/K17*EF_passenger_vehicle*(nonCO2_vehicle_emissions_ratio),(D17)/K17*EF_passenger_vehicle*(nonCO2_vehicle_emissions_ratio))-IF(G17=1,(D17*52)/(K17+D111)*EF_passenger_vehicle*(nonCO2_vehicle_emissions_ratio),(D17)/(K17+D111)*EF_passenger_vehicle*(nonCO2_vehicle_emissions_ratio))),0) -> 0 | L111: =J111/J82 ->  | N111: Economic savings = If action is selected: If vehicle #1's input is miles per week ((number of miles driven per week for vehicle #1 * weeks in a year) / vehicle #1's fuel efficiency * price per gallon of gasoline) - (miles driven per week * weeks in a year) / your current car's fuel efficiency + increased fuel efficiency) * price per gallon of gasoline) If vehicle #1's input is miles per year ((number of miles driven per year) / vehicle #1's fuel efficiency * price per gallon of gasoline) - (miles driven per week * weeks in a year) / vehicle #1's fuel efficiency + increase in vehicle #1's fuel efficiency) * price per gallon of gasoline)
A112: more miles per gallon. Will you take this action? | F112: enter 1 for yes, 2 for no, and 3 if you're already taking this action. | H112: annual savings | J112: pounds/yr | L112: percent of total emissions
A113: Replace vehicle 3 with one that gets | G113: $$$ | H113: =IF(F113=1,IF(G19=1,((D19*52/K19)*2.84)-((D19*52/(K19+D113))*2.84),IF(G19=2,(D19/K19*2.84)-(D19/(K19+D113)*2.84))),0) -> 0 | J113: =IF(F113=1,(IF(G19=1,(D19*52)/K19*19.4*(100/95),(D19)/K19*19.4*(100/95))-IF(G19=1,(D19*52)/(K19+D113)*19.4*(100/95),(D19)/(K19+D113)*19.4*(100/95))),0) -> 0 | L113: =J113/J82 -> 
A114: more miles per gallon. Will you take this action? | F114: enter 1 for yes, 2 for no, and 3 if you're already taking this action. | H114: annual savings | J114: pounds/yr | L114: percent of total emissions
A115: Replace vehicle 4 with one that gets | F115: 2 | G115: $$$ | H115: =IF(F115=1,IF(G21=1,((D21*52/K21)*2.84)-((D21*52/(K21+D115))*2.84),IF(G21=2,(D21/K21*2.84)-(D21/(K21+D115)*2.84))),0) -> 0 | J115: =IF(F115=1,(IF(G21=1,(D21*52)/K21*19.4*(100/95),(D21)/K21*19.4*(100/95))-IF(G21=1,(D21*52)/(K21+D115)*19.4*(100/95),(D21)/(K21+D115)*19.4*(100/95))),0) -> 0 | L115: =J115/J82 -> 
A116: more miles per gallon. Will you take this action? | F116: enter 1 for yes, 2 for no, and 3 if you're already taking this action. | H116: annual savings | J116: pounds/yr | L116: percent of total emissions
A117: Replace vehicle 5 with one that gets | F117: 2 | G117: $$$ | H117: =IF(F117=1,IF(G23=1,((D23*52/K23)*2.84)-((D23*52/(K23+D117))*2.84),IF(G23=2,(D23/K23*2.84)-(D23/(K23+D117)*2.84))),0) -> 0 | J117: =IF(F117=1,(IF(G23=1,(D23*52)/K23*19.4*(100/95),(D23)/K23*19.4*(100/95))-IF(G23=1,(D23*52)/(K23+D117)*19.4*(100/95),(D23)/(K23+D117)*19.4*(100/95))),0) -> 0 | L117: =J117/J82 -> 
A118: more miles per gallon. Will you take this action? | F118: enter 1 for yes, 2 for no, and 3 if you're already taking this action. | H118: annual savings | J118: pounds/yr | L118: percent of total emissions
H119: =SUM(H117,H115,H113,H111,H109,H29,H99,H97,H95,H93,H91) -> 0 | J119: =SUM(J117,J115,J113,J111,J109,J29,J99,J97,J95,J93,J91) -> 0
F121: Walking, biking, carpooling, telecommuting, and using mass transit are good options.
A123: At Home
A124: Suggested actions | G124: Cost* (Dollars) | H124: Estimated Savings (Dollars) | J124: Estimated Savings (CO2 Emissions) | T124: Active | AB124: Data | AD124: Dollars | AE124: $/(mcf/kWh/gallon) | AF124: $/therm | AG124: Heating Values
S125: Fuel | T125: =VLOOKUP($F$7,$Y$125:$Z$128,2,0) ->  | Y125: 1 | Z125: Natural Gas | AA125: =H37+1 -> 1 | AB125: =F37 -> 0 | AC125: Natural Gas | AD125: 1 | AE125: =Natural_gas_cost_1000CF -> 15.23 | AF125: =Natural_gas_cost_therm -> 1.467244701 | AG125: =heating_percent_NG -> 0.6807356755
A126: Turn down your household's heating thermostat | G126: no cost | H126: =IF(ISERROR(IF(F126=1,B127*T129*thermostat_heating_savings*12*T128*T127,0)),0,IF(F126=1,B127*T129*thermostat_heating_savings*12*T128*T127,0)) -> 0 | J126: =IF(F126=1,IF(F7=1,(J37*heating_percent_NG*thermostat_heating_savings*B127),IF(F7=2,(J42*heating_percent_electricity*thermostat_heating_savings*B127),IF(F7=3,(J53*heating_percent_fuel_oil*thermostat_heating_savings*B127),IF(F7=4,(J57*heating_percent_propane*thermostat_heating_savings*B127),IF(F7=5,(0)))))),"0") -> 0 | L126: =J126/J82 ->  | N126: Emission reduction = If action is selected: If heat source is natural gas, then, CO2 emissions from natural gas * percentage of energy source allotted to heating * savings per degree of setback (heating season) * number of degrees thermostat is turned down If heat source is electricity, then, CO2 emissions from electricity * percentage of energy source allotted to heating * savings per degree of setback (heating season) * number of degrees thermostat is turned down If heat source is fuel oil, then, CO2 emissions from fuel oil * percentage of energy source allotted to heating * savings per degree of setback (heating season) * number of degrees thermostat is turned down If heat source is propane, then, CO2 emissions from propane * percentage of energy source allotted to heating * savings per degree of setback (heating season) * number of degrees thermostat is turned down | S126: Fuel Unit Selector | T126: =VLOOKUP($F$7,$Y$125:$AA$128,3,0) ->  | Y126: 2 | Z126: Electricity | AA126: =H42+1 -> 2 | AB126: =F42 -> 0 | AC126: Electricity | AD126: 1 | AE126: =cost_per_kWh -> 0.1609 | AG126: =heating_percent_electricity -> 0.1235122389
A127: by | C127: degree(s) Fahrenheit on winter nights. | F127: enter 1 for yes, 2 for no, and 3 if you're already taking this action. | H127: annual savings | J127: pounds/yr | L127: percent of total emissions | S127: Fuel Consumed | T127: =VLOOKUP($F$7,$Y$125:$AB$128,4,0) ->  | Y127: 3 | Z127: Fuel Oil | AA127: =H53+1 -> 1 | AB127: =F53 -> 0 | AC127: Fuel Oil | AD127: 1 | AE127: =fuel_oil_cost -> 4.27 | AG127: =heating_percent_fuel_oil -> 0.7954545455
A128: Will you take this action? | T128: =VLOOKUP(T125,AC125:AF128,T126,0) ->  | Y128: 4 | Z128: Propane | AA128: =H57+1 -> 1 | AB128: =F57 -> 0 | AC128: Propane | AD128: 1 | AE128: =propane_cost -> 2.559 | AG128: =heating_percent_propane -> 0.7007672634
N129: Economic savings = If action is selected: If heat source is natural gas: If input is dollars, then, dollars spent/month * percentage of energy source allotted to heating * savings per degree of setback (heating season) * number of degrees thermostat is turned down * number of months in the year If input is therms, then, therms used/month * percentage of energy source allotted to heating * savings per degree of setback (heating season) * number of degrees thermostat is turned down * average cost per unit * number of months in the year If input is thousand cubic feet, then, thousand cubic feet used/month * percentage of energy source allotted to heating * savings per degree of setback (heating season) * number of degrees thermostat is turned down * average cost per unit * number of months in the year If heat source is electricity: If input is dollars, then, dollars spent/month * percentage of energy source allotted to heating * savings per degree of setback (heating season) * number of degrees thermostat is turned down * number of months in the year If input is kWh, then, kWh used/month * percentage of energy source allotted to heating * savings per degree of setback (heating season) * number of degrees thermostat is turned down * average cost per unit * number of months in the year If heat source is fuel oil: If input is dollars, then, dollars spent/month * percentage of energy source allotted to heating * savings per degree of setback (heating season) * number of degrees thermostat is turned down * number of months in the year If input is gallons, then, gallons used/month * percentage of energy source allotted to heating * savings per degree of setback (heating season) * number of degrees thermostat is turned down * average cost per unit * number of months in the year If heat source is propane: If input is dollars, then, dollars spent/month * percentage of energy source allotted to heating * savings per degree of setback (heating season) * number of degrees thermostat is turned down * number of months in the year If input is gallons, then, gallons used/month * percentage of energy source allotted to heating * savings per degree of setback (heating season) * number of degrees thermostat is turned down * average cost per unit * number of months in the year | T129: =VLOOKUP(T125,AC125:AG128,5,0) -> 
A130: Turn up your household's air conditioner thermostat | G130: no cost | H130: =IF(F130=1,IF(H42=1,(F42*AC_electricity_percent*thermostat_cooling_savings*B131*12),IF(H42=2,(F42*AC_electricity_percent*thermostat_cooling_savings*B131*cost_per_kWh*12))),"0") -> 0 | J130: =IF(F130=1, J42*AC_electricity_percent*thermostat_cooling_savings* B131,"0") -> 0 | L130: =J130/J82 ->  | N130: Emission reduction = If action is selelcted: total electricity emissions * percent of total electricity emissions accounted for by air conditioning * savings per Degree of Setback (Cooling Season) * number of degrees increased
A131: by | C131: degree(s) Fahrenheit in summer. | F131: enter 1 for yes, 2 for no, and 3 if you're already taking this action. | H131: annual savings | J131: pounds/yr | L131: percent of total emissions
A132: Will you take this action?
N133: If electricity input is dollars, then, percentage of energy source allotted to heating * savings per degree of setback (heating season) * number of degrees thermostat is turned down * number of months in the year If electricity input is kwh, then, percentage of energy source allotted to heating * savings per degree of setback (heating season) * number of degrees thermostat is turned down * average cost per kWh * number of months in the year
A134: Enable sleep feature on your computer and monitor. Will you take this action? | G134: no cost | H134: =IF(F134=1,computer_sleep_savings*cost_per_kWh,0) -> 0 | J134: =IF(F134=1,computer_sleep_savings*e_factor_value,"0") -> 0 | L134: =J134/J82 ->  | N134: Emission reduction = If action is selelcted: annual energy savings from enabling sleep feature on computer and monitor * electricity emission factor
F135: enter 1 for yes, 2 for no, and 3 if you're already taking this action. | H135: annual savings | J135: pounds/yr | L135: percent of total emissions | N135: Economic savings = If action is selelcted: annual energy savings from enabling sleep feature on computer and monitor * average cost per kWh
A137: Wash clothes in cold water instead of hot. Will you take this action? | G137: no cost | H137: =IF(F137=1,kWh_per_load_laundry*cost_per_kWh*52*B139,0) -> 0 | J137: =IF(F137=1,kWh_per_load_laundry*e_factor_value*52*B139,"0") -> 0 | L137: =J137/J82 ->  | N137: Emission reduction = If action is selected: average estimated kWh per load * emission factor * total number of loads per week * number of weeks in a year
A138: Enter the number of loads you do in a week | F138: enter 1 for yes, 2 for no, and 3 if you're already taking this action. | H138: annual savings | J138: pounds/yr | L138: percent of total emissions | N138: Economic savings = If action is selected: average estimated kWh per load * average cost per kWh * total number of loads per week * number of weeks in a year
A140: Use a clothes line or drying rack for 50% of your laundry, instead of your dryer. Will you take this action? | G140: $ | H140: =IF(F140=1,(dryer_energy/2)*cost_per_kWh,"0") -> 0 | J140: =IF(F140=1,(dryer_energy/2)*e_factor_value,"0") -> 0 | L140: =J140/J82 ->  | N140: Emission reduction = If action is selected: average energy consumption of a household dryer / reducing dryer use by 50% * electricity emission factor
F141: enter 1 for yes, 2 for no, and 3 if you're already taking this action. | H141: annual savings | J141: pounds/yr | L141: percent of total emissions | N141: Economic savings = If action is selected:
N142: average energy consumption of a household dryer / reducing dryer use by 50% * average cost per kWh
A143: Substitute | B143: 0 | C143: percent of your household's current | G143: $ | H143: The cost of green power [http://www.epa.gov/greenpower/locator/index.htm] varies depending on resource, geography and type of green power product. | J143: =IF(F143=1,B143*J42,"0") -> 0 | L143: =J143/J82 ->  | N143: Emission reduction = If action is selected: Total electricity emissions * percentage of electricity to be replaced by Green Power
A144: electricity use with Green Power. Will you take this action? | F144: enter 1 for yes, 2 for no, and 3 if you're already taking this action. | J144: pounds/yr | L144: percent of total emissions
A145: Your local utility or other electricity supplier may offer green power as an option. If you purchase some or all of your electricity as green power, enter the percentage here. For a definition of green power, visit http://www.epa.gov/greenpower/gpmarket/index.htm. On average, green power costs roughly 2 cents per kWh more than conventional power.
A147: Replace | C147: 60-watt incandescent light bulbs with 13-watt | G147: $ | H147: =IF(F147=1,B147*lamp_cost_savings,"0") -> 0 | J147: =IF(F147=1,B147*lamp_kWh_savings*e_factor_value,"0") -> 0 | L147: =J147/J82 ->  | N147: Emission reduction = If action is selected: number of 60-watt incandescent light bulbs replaced * annual kwh savings per lamp * electricity emission factor
A148: ENERGY STAR lights. Will you take this action? | F148: enter 1 for yes, 2 for no, and 3 if you're already taking this action. | H148: annual savings | J148: pounds/yr | L148: percent of total emissions
A149: The ENERGY STAR Change a Light, Change the World website (www.energystar.gov) can help your household take this action | N149: Economic savings = If action is selected: number of 60-watt incandescent light bulbs replaced * annual energy cost savings per lamp
A151: Replace your household's old refrigerator with an ENERGY STAR model. Will you take this action? | G151: $$ | H151: =IF(F151=1, fridge_replacement_kWh_savings*cost_per_kWh,"0") -> 0 | J151: =IF(F151=1, fridge_replacement_kWh_savings*e_factor_value,"0") -> 0 | L151: =J151/J82 ->  | N151: Emission reduction = If action is selected: (average kWh/year old fridge - average kWh/year ENERGY STAR fridge) electricity emission factor
F152: enter 1 for yes, 2 for no, and 3 if you're already taking this action. | H152: annual savings | J152: pounds/yr | L152: percent of total emissions
N154: Economic savings = If action is selected: (average kWh/year old fridge - average kWh/year ENERGY STAR fridge) average cost per kWh
A158: Replace old gas or oil furnace or boiler with an ENERGY STAR model. Will you take this action? | G158: $$$ | H158: =IF(F7=2,0,IF(F7=4,0,IF(F7=5,0,IF(F7=6,0,IF(F158=1,boiler_replacement_cost_savings,"0"))))) -> 0 | J158: =IF(F158=1,IF(F7=1,boiler_replacement_savings_NG,IF(F7=2,0,IF(F7=3,boiler_replacement_savings_FO,IF(F7=4,0,IF(F7=5,0,IF(F7=6,0)))))),"0") -> 0 | L158: =(J158/J82) ->  | N158: Emission reduction = If action is selected: If heat source is natural gas, then, average emission savings for natural gas If heat source is natural fuel oil, then, average emission savings for fuel oil
F159: enter 1 for yes, 2 for no, and 3 if you're already taking this action. | H159: annual savings | J159: pounds/yr | L159: percent of total emissions
N160: Economic savings = If action is selected: annual energy cost savings
A163: Replace single-pane windows with ENERGY STAR windows. Will you take this action? | G163: $$$ | H163: =IF(OR(F163=2, ISBLANK(F163)),0,IF(F7=6,0,window_replacement_cost_savings)) -> 0 | J163: =IF(F163=2,0,IF(F163=1,IF(F7=2,e_factor_value*(window_replacement_energy_savings/BTU_per_kWh),IF(F7=1,EF_natural_gas*(window_replacement_energy_savings/BTU_per_1000cf_NG),IF(F7=3,(window_replacement_energy_savings/BTU_per_gallon_FO)*EF_fuel_oil_gallon,IF(F7=4,(window_replacement_energy_savings/BTU_per_gallon_propane)*EF_propane,IF(F7=5,0,IF(F7=6,0)))))))) -> FALSE | L163: =J163/J82 ->  | N163: Emission reduction = If action is selected: If heat source is natural gas, then, (average annual energy savings from switching single pane windows to low-e ENERGY STAR windows / Btus per thousand cubic feet of natural gas) * natural gas emission factor If heat source is electricity, then, (average annual energy savings from switching single pane windows to low-e ENERGY STAR windows / Btus per kWh of electricity) * electricity emission factor If heat source is fuel oil, then, (average annual energy savings from switching single pane windows to low-e ENERGY STAR windows / Btus per gallon of fuel oil) * Fuel oil emission factor If heat source is propane, then, (average annual energy savings from switching single pane windows to low-e ENERGY STAR windows / Btus per gallon of propane) * Propane emission factor
F164: enter 1 for yes, 2 for no, and 3 if you're already taking this action. | H164: annual savings | J164: pounds/yr | L164: percent of total emissions
N171: Economic savings = If action is selected: annual energy cost savings
A172: Waste
A173: Suggested actions | G173: Cost* (Dollars) | H173: Estimated Savings (Dollars) | J173: Estimated Savings (CO2 Emissions)
A175: Are you willing to start recycling the material(s) you don't currently recycle (such as newspaper, glass, plastic, metal and magazines)? | G175: no cost | J175: =IF(F175=1,-SUM(IF(F65=2,$F$5*newspaper_recycling_avoided_emissions,0),IF(F67=2,$F$5*glass_recycling_avoided_emissions,0),IF(F69=2,$F$5*plastic_recycling_avoided_emissions,0),IF(F71=2,$F$5*metal_recycling_avoided_emissions,0),IF(F73=2,$F$5*mag_recycling_avoided_emissions,0)),0) -> 0 | L175: =J175/J82 ->  | N175: Emission Reduction = number of people in household * (average number of pounds of CO2 equivalent per person per year that could be saved by recycling newspaper + average number of pounds of CO2 equivalent per person per year that could be saved by recycling glass + average number of pounds of CO2 equivalent per person per year that could be saved by recycling plastic + average number of pounds of CO2 equivalent per person per year that could be saved by recycling metal+average number of pounds of CO2 equivalent per person per year that could be saved by recycling magazines)
F176: enter 1 for yes, 2 for no, and 3 if you're already taking this action. | J176: pounds/yr | L176: percent of total emissions
H177: Potential cost savings from recycling vary by community. If your community charges a fee per bag for trash pickup, for example, you may save money by recycling.
A183: Also consider reducing and reusing materials whenever possible. For more information visit EPA's Reduce Reuse Recycle Web site (http://www.epa.gov/garbage/reduce.htm).
A188: Current Emissions (as reported in the first section) | H188: =J82 ->  | J188: pounds
A189: If you took all the actions you selected above, you would reduce your annual emissions by | H189: =SUM(J91,J93,J95,J97,J99,J104,J109,J111,J113,J115,J117,J126,J130,J134,J137,J140,J143,J147,J151,J158,J163,J175,) -> 0 | J189: pounds | K189: or | L189: =H189/J82 ->  | M189: of your total
A190: If you took all the actions you selected above, your potential annual dollar savings would be* | G190: $ | H190: =SUM(H91,H93,H95,H97,H99,H104,H109,H111,H113,H115,H117,H126,H130,H134,H137,H140,H147,H151,H158,H163) -> 0 | J190: dollars
A191: Your new total annual CO2 emissions would be | H191: =J82-H189 ->  | J191: pounds
A192: Your average emissions per household member would be | H192: =H191/F5 ->  | J192: pounds | L192: average emissions per person are about 21,426 pounds per year
A194: no cost: you can take this action without spending money..
A195: $: it is estimated that you will need to spend between $1 and $100 before you start seeing both energy and dollar savings from this action.
A196: $$: it is estimated that you will need to spend more than $100 before you start seeing both energy and dollar savings from this action.
A197: $$$: it is estimated that you will need to spend more than $1000 before you start seeing both energy and dollar savings from this action.
A199: * Potential annual dollar savings are approximations based on generalized assumptions. Please note that the savings shown here do not account for the up-front cost of purchasing the energy-saving equipment or vehicles.

Sheet Assumptions
B1: List of Assumptions for Household GHG Calculator
B2: Last Update: | C2: 2024-08-22
B3: Description of Factor | C3: Value | D3: Unit | E3: Assumptions | F3: Source | G3: Vintage of Data
B4: Household Vehicles
B5: Pounds of CO2 emitted per gallon of gasoline | C5: 19.37 | D5: lbs CO2/gallon | F5: U.S. Energy Information Administration, "Carbon Dioxide Emissions Coefficients by Fuel," data revised February 9, 2022, https://www.eia.gov/environment/emissions/co2_vol_mass.php | G5: 2023
B6: Ratio of total emissions to CO2-only emissions | C6: =100/98.65 -> 1.013684744 | D6: lbCO2e/lbCO2 | E6: Emissions from gasoline powered passenger cars (MMT CO2 Eq.): CO2 = 356.0 CH4 = 0.2 N2O = 1.6 Total = 357.8 Total/CO2 = 1.005 (1.01) | F6: EPA (2024) Inventory of U.S. Greenhouse Gas Emissions and Sinks: 1990-2022. U.S. Environmental Protection Agency, EPA 430-R-24-004. Chapter 3 (Energy), Tables 3-13, 3-14, and 3-15 https://www.epa.gov/ghgemissions/inventory-us-greenhouse-gas-emissions-andsinks-1990-2022. | G6: 2022
B7: Passenger Vehicle Fuel Economy | C7: 24.8 | D7: miles per gallon (mpg) | F7: Federal Highway Administration, Highway Statistics 2022, Table VM-1. Annual Vehicle Distance Traveled in Miles and Related Data, light duty vehicles short WB (February 2024). https://www.fhwa.dot.gov/policyinformation/statistics/2022/vm1.cfm | G7: 2022
B8: Average miles traveled per year per vehicle | C8: 10847 | D8: miles per year | F8: Federal Highway Administration, Highway Statistics 2022, Table VM-1. Annual Vehicle Distance Traveled in Miles and Related Data, light duty vehicles short WB (February 2024). https://www.fhwa.dot.gov/policyinformation/statistics/2022/vm1.cfm | G8: 2022
B9: Average miles traveled per week per vehicle | C9: =C8/52 -> 208.5961538 | D9: miles per week | F9: Calculation
B10: Average emissions for a typical vehicle | C10: =1/average_mpg*C8*EF_passenger_vehicle -> 8472.031855 | D10: lbs CO2e/vehicle | E10: 1 / passenger vehicle fuel economy * average miles traveled per year per vehicle * emission factor (lbs of CO2 emitted per gallon of gasoline) | F10: U.S. Energy Information Administration, "Carbon Dioxide Emissions Coefficients by Fuel," data revised February 9, 2022, https://www.eia.gov/environment/emissions/co2_vol_mass.php Federal Highway Administration, Highway Statistics 2022, Table VM-1. Annual Vehicle Distance Traveled in Miles and Related Data, light duty vehicles short WB (February 2024). https://www.fhwa.dot.gov/policyinformation/statistics/2022/vm1.cfm | G10: 2023, 2022
B11: Home Energy
B12: NATURAL GAS
B13: Average monthly consumption of natural gas | C13: =566*100/12 -> 4716.666667 | D13: cubic feet of natural gas/household | E13: Annual average site energy consumption per household for natural gas is 566 ccf, or 56,600 cubic feet. | F13: U.S. Energy Information Administration Residential Energy Consumption Survey 2020 Fuel Consumption in the U.S. Table CE2.1 https://www.eia.gov/consumption/residential/data/2020/c&e/pdf/ce2.1.pdf | G13: 2020
B14: Price per thousand cubic feet of natural gas | C14: 15.23 | D14: dollars/1000 cubic feet | F14: Energy Information Administration: Natural Gas Prices, Residential Price. Release date June 28, 2024 annual average. http://www.eia.gov/dnav/ng/ng_pri_sum_dcu_nus_a.htm | G14: 2023
B15: Average cost of natural gas | C15: =Natural_gas_cost_1000CF/conversion_1000cf_to_therm -> 1.467244701 | D15: dollars/therm | F15: Calculation
B16: Carbon coefficient of natural gas | C16: 14.43 | D16: Tg C/QBtu | F16: EPA, Inventory of U.S. Greenhouse Gas Emissions and Sinks: 1990-2022, Annex 2,Table A-29 Carbon Content Coefficients for Natural Gas.chrome-extension://efaidnbmnnnibpcajpcglclefindmkaj/https://www.epa.gov/system/files/documents/2024-04/us-ghg-inventory-2024-annexes.pdf | G16: 2022
B17: Emission factor (natural gas/therm) | C17: =C18/C93 -> 11.66465828 | D17: lbs CO2/therm natural gas | F17: calculation | G17: 2020
B18: Emission factor (natural gas/thousand cubic feet) | C18: =C16*$C$89*$C$95*$C$91/$C$90 -> 121.079153 | D18: lbs CO2/1000 cubic feet of natural gas | E18: Carbon coefficient of natural gas * ratio of CO2 to carbon * energy content of natural gas * lbs to teragrams conversion * QBtu/1015Btu | F18: EPA, Inventory of U.S. Greenhouse Gas Emissions and Sinks: 1990-2022, Annex 2,Table A-29 Carbon Content Coefficients for Natural Gas.chrome-extension://efaidnbmnnnibpcajpcglclefindmkaj/https://www.epa.gov/system/files/documents/2024-04/us-ghg-inventory-2024-annexes.pdf | G18: 2022
B19: Average annual CO2 emissions from natural gas per household | C19: =C13*12*C18/1000 -> 6853.080058 | D19: lbs CO2/household (natural gas) | E19: Average monthly consumption of natural gas * 12 * Emission factor (natural gas/1000 cf) / 1000 | F19: Calculation
B20: Average annual CO2 emissions from natural gas per household of one person | C20: =C19/$C$103 -> 2730.31078 | D20: lbs CO2/year/person | E20: Average annual CO2 emissions from natural gas per household / average number of people per household | F20: Calculation
B21: Average monthly cost of natural gas per household of one person | C21: =C13/$C$103*C14/1000 -> 28.61945551 | D21: dollars/month/person | E21: Average monthly consumption of natural gas per household / average number of people per household * price of natural gas * 1000 cubic feet unit conversion | F21: Calculation
B22: ELECTRICITY
B23: Average monthly electricity consumption per household | C23: =10566/12 -> 880.5 | D23: kWh/month/household | E23: Annual average site energy consumption, all homes, 10566kWh | F23: U.S. Energy Information Administration Residential Energy Consumption Survey 2020 Fuel Consumption in the U.S. Table CE2.1 https://www.eia.gov/consumption/residential/data/2020/c&e/pdf/ce2.1.pdf Released March 2024, Data for 2020 | G23: 2020
B24: Average US price per kWh | C24: 0.1609 | D24: dollars/kWh | F24: U.S. Energy Information Administration, Electric Power Monthly - October 2021, Table 5.3 (Average Retail Price of Electricity to Ultimate Customers, Residential Sector), 2024 Rolling 12 Months Ending in April. https://www.eia.gov/electricity/monthly/epm_table_grapher.php?t=epmt_5_03 | G24: 2024
B25: Electricity emissions factors are categorized by geographic subregion: see EGRID_DATA. | C25: See Emission_Factors tab | D25: lbs CO2e/kWh | E25: Varies by subregion. | F25: eGRID Summary Tables 2020, Table 1, published January 27, 2022. Available at https://www.epa.gov/egrid/summary-data | G25: 2022
B26: Average annual CO2e emissions from electricity per household | C26: =C23*12*EMISSION_FACTORS!F37/1000 -> 8743.57632 | D26: lbs CO2e/household (electricity) | E26: Average monthly electricity consumption per household * 12 months/yr * national electricity emission factor / 1000 kWh/MWh | F26: Calculation
B27: Average annual CO2e emissions from electricity per household of one person | C27: =C26/$C$103 -> 3483.496542 | D27: lbs CO2e/year/person | E27: Average emissions per household / average number of people per household | F27: Calculation
B28: Average montly cost of electricity per household of one person | C28: =C23/$C$103*C24 -> 56.44320717 | D28: dollars/month/person | E28: Average monthly electricity consumption / average number of people per household * price per kWh of electricity | F28: Calculation
B29: FUEL OIL
B30: Average monthly consumption of fuel oil per household | C30: =507/12 -> 42.25 | D30: gallons of fuel oil/month | E30: Average monthly consumption of 42 gallons of fuel oil, based on annual average consumption of 507 gallons of fuel oil per household per year. average houshold size is 2.51. | F30: U.S Energy Information Administration 2020. A Look at Residential Energy Consumption in 2020 - Table CE2.1. chrome-extension://efaidnbmnnnibpcajpcglclefindmkaj/https://www.eia.gov/consumption/residential/data/2020/c&e/pdf/ce2.1.pdf March 2024, Data for 2020 | G30: 2020
B31: Average price per gallon of fuel oil | C31: 4.27 | D31: dollars/gallon | E31: The data from the winter (Jan, Feb, Mar, Oct, Nov, Dec) is a sufficient estimate for yearly data. | F31: Energy Information Administration, April 2020. US No. 2 Heating Oil Residential Prices - 2019 annual average. https://www.eia.gov/dnav/pet/hist/LeafHandler.ashx?n=PET&s=M_EPD2F_PRS_NUS_DPG&f=M | G31: 2024
B32: Carbon coefficient of fuel oil | C32: 20.22 | D32: Tg C/QBtu | F32: EPA, Inventory of U.S. Greenhouse Gas Emissions and Sinks: 1990-2022, Annex 2,Table A-30 Carbon Content Coefficients and Underlying Data for Petroleum Products, Distillate fuel oil no. 2. https://www.epa.gov/ghgemissions/inventory-us-greenhouse-gas-emissions-and-sinks | G32: 2022
B33: Fuel oil emission factor (pounds of CO2/gallon fuel oil) | C33: =C32*$C$89*$C$99*$C$91/$C$90 -> 22.45711284 | D33: lbs CO2/gallon of fuel oil | E33: Carbon coefficient of fuel oil * ratio of CO2 to carbon * energy content of fuel oil * lbs to teragrams conversion * QBtu/1015Btu | F33: Calculation
B34: Fuel oil emission factor (pounds of CO2/MMBtu fuel oil) | C34: =C33/($C$99)*10^6 -> 163.450721 | D34: lbs CO2/MMBtu | E34: lbs CO2/gallon * Btu/gallon * Btu to MMBtu conversion | F34: Calculation
B35: Average annual CO2 emissions from fuel oil per household | C35: =C30*12*C33 -> 11385.75621 | D35: lbs CO2/household (fuel oil) | E35: Average monthly consumption of fuel oil per household * 12 months/yr * fuel oil emission factor | F35: Calculation
B36: Average annual CO2 emissions from fuel oil per household of one person | C36: =C35/$C$103 -> 4536.157852 | D36: lbs CO2/year/person | E36: Average emissions from fuel oil per household / average number of people per household | F36: Calculation
B37: Average monthly cost of fuel oil per household of one person | C37: =C30/$C$103*C31 -> 71.87549801 | D37: dollars/year/person | E37: Average monthly fuel oil consumption / average number of people per household * price per gallon of fuel oil. | F37: Calculation
B38: PROPANE
B39: Average monthly consumption of propane (LPG) per household | C39: =387/12 -> 32.25 | D39: gallons of oil/month | F39: U.S Energy Information Administration 2020. A Look at Residential Energy Consumption in 2020 - Table CE2.1. chrome-extension://efaidnbmnnnibpcajpcglclefindmkaj/https://www.eia.gov/consumption/residential/data/2020/c&e/pdf/ce2.1.pdf | G39: 2020
B40: Price per gallon of propane | C40: 2.559 | D40: dollars/gallon propane | F40: Energy Information Administration, U.S. Propane Residential Price - 2023 annual average. Released April 2024. https://www.eia.gov/dnav/pet/hist/LeafHandler.ashx?n=PET&s=M_EPLLPA_PRS_NUS_DPG&f=M | G40: 2023
B41: Carbon coefficient for propane | C41: 17.15 | D41: Tg C/QBtu | F41: EPA, Inventory of U.S. Greenhouse Gas Emissions and Sinks: 1990-2022, Annex 2,Table A-30 Carbon Content Coefficients and Underlying Data for Petroleum Products, LPG (Propane). https://www.epa.gov/ghgemissions/inventory-us-greenhouse-gas-emissions-and-sinks | G41: 2022
B42: Propane emission factor | C42: =C41*(44/12)*$C$102*C91/C90 -> 12.67739806 | D42: lbs CO2/gallon propane | E42: Carbon coefficient of propane * ratio of CO2 to carbon * energy content of propane * lbs to teragrams conversion * QBtu/1015Btu | F42: Calculation
B43: Average annual emissions from propane per household | C43: =C39*12*C42 -> 4906.15305 | D43: lbs CO2/household (propane) | E43: Average monthly consumption of propane per household * 12 months/yr * propane emission factor | F43: Calculation
B44: Average annual emissions from propane per household of one person | C44: =C43/$C$103 -> 1954.642649 | D44: lbs CO2/year/person | E44: Average monthly propane consumption / average number of people per household | F44: Calculation
B45: Average monthly cost of propane per household of one person | C45: =C39/$C$103*C40 -> 32.87958167 | D45: dollars/year/person | E45: Average monthly propane consumption / average number of people per household * price per gallon of propane | F45: Calculation
B46: Waste
B47: Average lbs CO2 equivalent generated from waste per person per year | C47: =WASTE!B37 -> 822.2562162 | D47: lbs CO2e/year/person from waste | E47: Includes CH4 from landfills, CH4 from composting, and N2O from composting. Excludes wastewater treatment and bigas facilities. | F47: Based on EPA's Inventory of U.S. Greenhouse Gas Emissions and Sinks 1990-2022, Chapter 7 (Waste), Table 7-1: Emissions from Waste (MMT CO2 eq), CH4 and N2O emissions from Landfills and Composting (excludes wastewater treatment) https://www.epa.gov/ghgemissions/inventory-us-greenhouse-gas-emissions-and-sinks and U.S. Census Bureau, as of July, 2022, https://www.census.gov/popclock/ | G47: 2022
B48: Average number of pounds of CO2 equivalent per person per year that could be saved by recycling metal | C48: =WASTE!B42 -> -120.6183979 | D48: lbs CO2e/year/person avoided from recycling metal | E48: Carbon dioxide equivalent emissions associated with household waste management were calculated using the total emissions for landfills (including incineration, landfill gas-to- energy projects, oxidation, and flaring) and the United States population estimates from U.S. Census Data. The emission factors for each material type were developed by EPA and presented in the Agency's report on greenhouse gas emissions from waste management and in the online Waste Reduction Model (WARM). These emission factors take into account the full material life cycle; i.e., not only emissions at the landfill, but also emissions and sequestration associated with production, manufacturing, remanufacturing, forest carbon storage due to reduced harvests, etc. The emission factor used for recycling materials in this calculator compares greenhouse gas emissions from recycling with those attributable to landfilling. This approach enables policy makers to evaluate, on a per-ton basis, the overall difference in greenhouse gas emissions between (1) recycling 1 ton of material and (2) manufacturing and then managing (post-consumer) 1 ton of the same material. Calculations assume that it would be possible for households to recycle 100 percent of all recyclable materials generated as waste. The plastic material type used in the calculator includes PET and HDPE, and the metal material type includes aluminum and steel cans. | F48: Emission data are from: EPA, Documentation for Greenhouse Gas Emission and Energy Factors Used in the Waste Reduction Model (WARM) v16, Containers, Packaging, and Non-Durable Good Materials Chapters, (Dec 2023) https://www.epa.gov/system/files/documents/2023-12/warm_containers_packaging_and_non-durable_goods_materials_v16_dec.pdf Amount of waste generated from: EPA, Advancing Sustainable Materials Management: 2018 Tables and Figures (December 2020) https://www.epa.gov/facts-and-figures-about-materials-waste-and-recycling/advancing-sustainable-materials-management U.S. Census approximates from https://www.census.gov/popclock/ | G48: 2018, 2023
B49: Average number of pounds of CO2 equivalent per person per year that could be saved by recycling plastic | C49: =WASTE!B47 -> -72.91366846 | D49: lbs CO2e/year/person avoided from recycling plastic | E49: Carbon dioxide equivalent emissions associated with household waste management were calculated using the total emissions for landfills (including incineration, landfill gas-to- energy projects, oxidation, and flaring) and the United States population estimates from U.S. Census Data. The emission factors for each material type were developed by EPA and presented in the Agency's report on greenhouse gas emissions from waste management and in the online Waste Reduction Model (WARM). These emission factors take into account the full material life cycle; i.e., not only emissions at the landfill, but also emissions and sequestration associated with production, manufacturing, remanufacturing, forest carbon storage due to reduced harvests, etc. The emission factor used for recycling materials in this calculator compares greenhouse gas emissions from recycling with those attributable to landfilling. This approach enables policy makers to evaluate, on a per-ton basis, the overall difference in greenhouse gas emissions between (1) recycling 1 ton of material and (2) manufacturing and then managing (post-consumer) 1 ton of the same material. Calculations assume that it would be possible for households to recycle 100 percent of all recyclable materials generated as waste. The plastic material type used in the calculator includes PET and HDPE, and the metal material type includes aluminum and steel cans. | F49: Emission data are from: EPA, Documentation for Greenhouse Gas Emission and Energy Factors Used in the Waste Reduction Model (WARM) v16, Containers, Packaging, and Non-Durable Good Materials Chapters, (Dec 2023) chrome-extension://efaidnbmnnnibpcajpcglclefindmkaj/https://www.epa.gov/system/files/documents/2023-12/warm_containers_packaging_and_non-durable_goods_materials_v16_dec.pdf. Amount of waste generated from: EPA, Advancing Sustainable Materials Management: 2018 Tables and Figures (December 2020) https://www.epa.gov/facts-and-figures-about-materials-waste-and-recycling/advancing-sustainable-materials-management U.S. Census approximates from https://www.census.gov/popclock/ | G49: 2018, 2023
B50: Average number of pounds of CO2 equivalent per person per year that could be saved by recycling glass | C50: =WASTE!B52 -> -19.20726018 | D50: lbs CO2e/year/person avoided from recycling glass | E50: Carbon dioxide equivalent emissions associated with household waste management were calculated using the total emissions for landfills (including incineration, landfill gas-to- energy projects, oxidation, and flaring) and the United States population estimates from U.S. Census data. The emission factors for each material type were developed by EPA and presented in the Agency's report on greenhouse gas emissions from waste management and in the online Waste Reduction Model (WARM). These emission factors take into account the full material life cycle; i.e., not only emissions at the landfill, but also emissions and sequestration associated with production, manufacturing, remanufacturing, forest carbon storage due to reduced harvests, etc. The emission factor used for recycling materials in this calculator compares greenhouse gas emissions from recycling with those attributable to landfilling. This approach enables policy makers to evaluate, on a per-ton basis, the overall difference in greenhouse gas emissions between (1) recycling 1 ton of material and (2) manufacturing and then managing (post-consumer) 1 ton of the same material. Calculations assume that it would be possible for households to recycle 100 percent of all recyclable materials generated as waste. The plastic material type used in the calculator includes PET and HDPE, and the metal material type includes aluminum and steel cans. | F50: Emission data are from: EPA, Documentation for Greenhouse Gas Emission and Energy Factors Used in the Waste Reduction Model (WARM) v16, Containers, Packaging, and Non-Durable Good Materials Chapters, (Dec 2023) chrome-extension://efaidnbmnnnibpcajpcglclefindmkaj/https://www.epa.gov/system/files/documents/2023-12/warm_containers_packaging_and_non-durable_goods_materials_v16_dec.pdf. Amount of waste generated from: EPA, Advancing Sustainable Materials Management: 2018 Tables and Figures (December 2020) https://www.epa.gov/facts-and-figures-about-materials-waste-and-recycling/advancing-sustainable-materials-management U.S. Census approximates from https://www.census/gov/popclocks/ | G50: 2018, 2023
B51: Average number of pounds of CO2 equivalent per person per year that could be saved by recycling newspaper | C51: =WASTE!B57 -> -118.9641301 | D51: lbs CO2e/year/person avoided from recycling newspaper | E51: Carbon dioxide equivalent emissions associated with household waste management were calculated using the total emissions for landfills (including incineration, landfill gas-to- energy projects, oxidation, and flaring) and the United States population estimates from U.S. Census data. The emission factors for each material type were developed by EPA and presented in the Agency's report on greenhouse gas emissions from waste management and in the online Waste Reduction Model (WARM). These emission factors take into account the full material life cycle; i.e., not only emissions at the landfill, but also emissions and sequestration associated with production, manufacturing, remanufacturing, forest carbon storage due to reduced harvests, etc. The emission factor used for recycling materials in this calculator compares greenhouse gas emissions from recycling with those attributable to landfilling. This approach enables policy makers to evaluate, on a per-ton basis, the overall difference in greenhouse gas emissions between (1) recycling 1 ton of material and (2) manufacturing and then managing (post-consumer) 1 ton of the same material. Calculations assume that it would be possible for households to recycle 100 percent of all recyclable materials generated as waste. The plastic material type used in the calculator includes PET and HDPE, and the metal material type includes aluminum and steel cans. | F51: Emission data are from: EPA, Documentation for Greenhouse Gas Emission and Energy Factors Used in the Waste Reduction Model (WARM) v16, Containers, Packaging, and Non-Durable Good Materials Chapters, (Dec 2023) chrome-extension://efaidnbmnnnibpcajpcglclefindmkaj/https://www.epa.gov/system/files/documents/2023-12/warm_containers_packaging_and_non-durable_goods_materials_v16_dec.pdf. Amount of waste generated from: EPA, Advancing Sustainable Materials Management: 2018 Tables and Figures (December 2020) https://www.epa.gov/facts-and-figures-about-materials-waste-and-recycling/advancing-sustainable-materials-management U.S. Census approximates from https://www.census/gov/popclocks/ | G51: 2018, 2023
B52: Average number of pounds of CO2 equivalent per person per year that could be saved by recycling magazines | C52: =WASTE!B62 -> -85.03200975 | D52: lbs CO2e/year/person avoided from recycling magazines | E52: Carbon dioxide equivalent emissions associated with household waste management were calculated using the total emissions for landfills (including incineration, landfill gas-to- energy projects, oxidation, and flaring) and the United States population estimates from U.S. census data. The emission factors for each material type were developed by EPA and presented in the Agency's report on greenhouse gas emissions from waste management and in the online Waste Reduction Model (WARM). These emission factors take into account the full material life cycle; i.e., not only emissions at the landfill, but also emissions and sequestration associated with production, manufacturing, remanufacturing, forest carbon storage due to reduced harvests, etc. The emission factor used for recycling materials in this calculator compares greenhouse gas emissions from recycling with those attributable to landfilling. This approach enables policy makers to evaluate, on a per-ton basis, the overall difference in greenhouse gas emissions between (1) recycling 1 ton of material and (2) manufacturing and then managing (post-consumer) 1 ton of the same material. Calculations assume that it would be possible for households to recycle 100 percent of all recyclable materials generated as waste. The plastic material type used in the calculator includes PET and HDPE, and the metal material type includes aluminum and steel cans. | F52: Emission data are from: EPA, Documentation for Greenhouse Gas Emission and Energy Factors Used in the Waste Reduction Model (WARM) v16, Containers, Packaging, and Non-Durable Good Materials Chapters, (Dec 2023) chrome-extension://efaidnbmnnnibpcajpcglclefindmkaj/https://www.epa.gov/system/files/documents/2023-12/warm_containers_packaging_and_non-durable_goods_materials_v16_dec.pdf. Amount of waste generated from: EPA, Advancing Sustainable Materials Management: 2018 Tables and Figures (December 2020) https://www.epa.gov/facts-and-figures-about-materials-waste-and-recycling/advancing-sustainable-materials-management U.S. Census approximates from https://www.census.gov/popclock/ | G52: 2018, 2023
B53: Average total emissions for household of one person | C53: =SUM(C47,C27,C36,C44,C20,C10) -> 21998.89589 | D53: lbs CO2e/year | E53: Sum of average lbs CO2 equivalent generated from waste per person per year, average annual CO2e emissions from electricity per household of one person, average annual CO2 emissions from natural gas per household of one person, and average emissions for a typical vehicle, average annual emissions from propane per household of one person, average annual emissions from fuel oil per household of one person. Assume household owns a car. | F53: Calculation
B55: What You Can Do To Reduce Your Emissions
B56: On the Road
B57: Average variable cost per mile to drive | C57: 0.1792 | D57: dollars/mile | E57: Source includes average operating costs for car models from 1985-2020.New value is the average variable cost per mile across all Model years. (i.e. assuming people still drive 1985 make cars. | F57: Transportation Energy Data Book, Table 11.15 Car Operating Cost per Mile, 1985-2020, Variable Cost, updated June 2022 https://tedb.ornl.gov/ | G57: 2020
B58: Increase in fuel efficiency from performing regular maintenance on your vehicles | C58: 0.016 | D58: % | E58: You can improve your gas mileage by 0.6% on average—up to 3% in some cases—by keeping your tires inflated to the proper pressure. Under-inflated tires can lower gas mileage by about 0.2% for every 1 psi drop in the average pressure of all tires. Properly inflated tires are safer and last longer. The proper tire pressure for your vehicle is usually found on a sticker in the driver's side door jamb or the glove box and in your owner's manual. Do not use the maximum pressure printed on the tire's sidewall. You can improve your gas mileage by 1%–2% by using the manufacturer's recommended grade of motor oil. For example, using 10W-30 motor oil in an engine designed to use 5W-30 can lower your gas mileage by 1%–2%. Using 5W-30 in an engine designed for 5W-20 can lower your gas mileage by 1%–1.5%. Also, look for motor oil that says "Energy Conserving" on the API performance symbol to be sure it contains friction-reducing additives. | F58: US EPA and US DOE Fuel Economy Website, accessed August 21, 2024, https://www.fueleconomy.gov/feg/maintain.jsp | G58: 2022
B59: Price per gallon of gasoline | C59: 3.685 | D59: dollars/gallon gasoline | F59: EIA US Retail Gasoline Prices, 2023. Annual average price per gallon of gasoline, Gasoline - All Grades. Released July 14, 2024. https://www.eia.gov/dnav/pet/pet_pri_gnd_dcus_nus_a.htm | G59: 2023
B60: At Home
B61: Savings per degree of setback (heating season) | C61: =3% -> 0.03 | D61: % | F61: ENERGY STAR CALCULATOR: Cost Estimate for Energy Star Qualified Programmable Thermostats (2004) https://www.energystar.gov/ia/partners/promotions/cool_change/downloads/CalculatorProgrammableThermostat.xls | G61: 2004
B62: Percentage of natural gas allotted to heating | C62: =2887/4241 -> 0.6807356755 | D62: % | E62: 2887 trillion Btu natural gas consumed for space heating/4241 trillion Btu feet total natural gas consumption | F62: U.S. Energy Information Administration 2020. Table CE4.1 Annual household site end-use consumption by fuel in the United States—totals, 2020. https://www.eia.gov/consumption/residential/data/2020/c&e/pdf/ce4.1.pdf | G62: 2020
B63: Percentage of electricity source allotted to heating | C63: =550/4453 -> 0.1235122389 | D63: % | E63: 550 trillion Btu of electricity consumed for space heating/4453 trillion Btu total electricity consumption | F63: U.S. Energy Information Administration 2020. Table CE4.1 Annual household site end-use consumption by fuel in the United States—totals, 2020. https://www.eia.gov/consumption/residential/data/2020/c&e/pdf/ce4.1.pdf | G63: 2020
B64: Percentage of fuel oil source allotted to heating | C64: =315/396 -> 0.7954545455 | D64: % | E64: 315 trillion Btu of fuel oil consumed for space heating/396 trillion Btu total fuel oil consumption | F64: U.S. Energy Information Administration 2020. Table CE4.1 Annual household site end-use consumption by fuel in the United States—totals, 2020. https://www.eia.gov/consumption/residential/data/2020/c&e/pdf/ce4.1.pdf | G64: 2020
B65: Percentage of propane source allotted to heating | C65: =274/391 -> 0.7007672634 | D65: % | E65: 274 trillion Btu LPG (propane) consumed for space heating/391 trillion Btu total LPG consumption | F65: U.S. Energy Information Administration 2020. Table CE4.1 Annual household site end-use consumption by fuel in the United States—totals, 2020. https://www.eia.gov/consumption/residential/data/2020/c&e/pdf/ce4.1.pdf | G65: 2020
B66: Percent of total electricity emissions accounted for by air conditioning | C66: =866/4453 -> 0.1944756344 | D66: % | E66: 866 trillion Btu of electricity consumed for air conditioning/4453 trillion Btu total electricity consumption | F66: U.S. Energy Information Administration 2020. Table CE4.1 Annual household site end-use consumption by fuel in the United States—totals, 2020. https://www.eia.gov/consumption/residential/data/2020/c&e/pdf/ce4.1.pdf | G66: 2020
B67: Savings per degree of setback (cooling season) | C67: =6% -> 0.06 | D67: % | F67: ENERGY STAR CALCULATOR: Cost Estimate for Energy Star Qualified Programmable Thermostats (2004) https://www.energystar.gov/ia/partners/promotions/cool_change/downloads/CalculatorProgrammableThermostat.xls | G67: 2004
B68: Annual energy savings from enabling sleep feature on computer and monitor | C68: =(C70+C72)-(C69+C71) -> 43 | D68: kWh | E68: Assuming use of a desktop. | F68: Calculation
B69: Average annual unit computer energy (sleep feature enabled, computer turned off at night): | C69: 27 | D69: kWh | E69: Assuming use of a desktop. | F69: ENERGY STAR Databook 2021, table: Annual & Lifetime Savings from ENERGY STAR Certified Computers and Monitors | G69: 2021
B70: Average annual unit computer energy (sleep feature not enabled, computer turned off at night): | C70: 52 | D70: kWh | E70: Assuming use of a desktop. | F70: ENERGY STAR Databook 2021, table: Annual & Lifetime Savings from ENERGY STAR Certified Computers and Monitors | G70: 2021
B71: Average annual unit monitor energy (sleep feature enabled, monitor turned off at night): | C71: 16 | D71: kWh | F71: ENERGY STAR Databook 2021, table: Annual & Lifetime Savings from ENERGY STAR Certified Computers and Monitors | G71: 2021
B72: Average annual unit monitor energy (sleep feature not enabled, monitor turned off at night): | C72: 34 | D72: kWh | F72: ENERGY STAR Databook 2021, table: Annual & Lifetime Savings from ENERGY STAR Certified Computers and Monitors | G72: 2021
B73: Average estimated kWh for water heating per load | C73: 0.96 | D73: kWh | E73: Assumes 295 loads/yr, 289 kWh/yr for machine energy and dryer energy. Data is being referenced in support of assessing energy savings from washing clothes in cold water only so water heating energy is excluded - see 'Personal GHG Calculator' line 137 | F73: ENERGY STAR Data Book Worksheet for 2014 | G73: 2021
B74: Average energy consumption of a household dryer | C74: 769 | D74: kWh/year | E74: Assumes 3000 Watt dryer and 5 hours of use per week. | F74: EERE, amended federal standard (10 CFR 430.32(h)(3)) for residential clothes dryers: http://www1.eere.energy.gov/buildings/appliance_standards/product.aspx/productid/36 | G74: 2021
B75: Average premium of green power per kWh | C75: 0.0158 | D75: dollars | F75: NREL 2019, Status and Trends in the U.S. Voluntary Green Power Market https://www.nrel.gov/docs/fy19osti/72204.pdf | G75: 2017
B76: Annual kWh savings per light bulb | C76: =47-10 -> 37 | D76: kWh | E76: Assumes 43 watt halogen light bulb (unit energy consumption: 47 kWh/year) is replaced with with 9 watt LED bulb (unit energy consumption: 10 kWh/year). Assumes light is on for 3 hours per day. | F76: ENERGY STAR data book 2024, Annual & Lifetime Savings from ENERGY STAR Certified Products, Residential and Commercial Lighting, Light Bulbs (halogen vs. LED) | G76: 2024
B77: Annual energy cost saving per lamp | C77: 5 | D77: dollars | E77: Assumes 43 watt halogen light bulb is replaced with with 9 watt LED bulb. Assumes light is on for 1.9 hours per day. Assumes interior light | F77: ENERGY STAR data book 2024, Annual & Lifetime Savings from ENERGY STAR Certified Products, Residential and Commercial Lighting, Light Bulbs (halogen vs. LED) | G77: 2024
B78: Average kWh/year ENERGY STAR refrigerator | C78: 488 | D78: kWh/year | F78: 2024 ENERGY STAR Data Book, Annual & Lifetime Savings from ENERGY STAR Certified Products | G78: 2021
B79: Average kWh/year old refrigerator | C79: =543*(1+(0.0137*10)) -> 617.391 | D79: kWh/year | E79: Estimate for 10 year old refrigerator: 2010 refrigerator energy consumption of 543 kWh/yr * (1 + (1.37% * 10 yrs). Refrigerators last ~14-17 years on average. Degradation factor from ENERGY STAR data team, based on AHAM data. From ENERGY STAR data team: Refrigerator degradation is based on the formula (UEC) * (1 + (1.37% * Age in Years)). Source: Miller, J.D. and Pratt, R.G of Pacific Northwest National Laboratory. Estimates of Refrigerator Loads in Public Housing Based on Metered Consumption Data. ENERGY STAR Partnerships Program. Prepared for the U.S. Department of Energy under Contract DE-AC06-76RLO 1830. October 1998. p. 3.15. | F79: 2010 refrigerator energy consumption from ENERGY STAR Databook 2020, table: Historical Appliance Energy and Water Usage Table. Refrigerator degradation factor from Miller, J.D. and Pratt, R.G of Pacific Northwest National Laboratory. Estimates of Refrigerator Loads in Public Housing Based on Metered Consumption Data. ENERGY STAR Partnerships Program. Prepared for the U.S. Department of Energy under Contract DE-AC06-76RLO 1830. October 1998. p. 3.15. | G79: 2010, 1998
B80: Average kWh savings for refrigerator replacement | C80: =C79-C78 -> 129.391 | D80: kWh/year | E80: Difference between 2010 refrigerator and an ENERGY STAR refrigerator. | F80: Calculation | G80: 2021
B81: Average emission savings for natural gas from upgrading to ENERGY STAR boiler/furnace | C81: =AVERAGE('Heating Equip Upgrade'!F5,'Heating Equip Upgrade'!F8) -> 641.5562055 | D81: lbs/year | F81: Calculations based on 2024 ENERGY STAR Data Book, Annual & Lifetime Savings from ENERGY STAR Certified Products | G81: 2024
B82: Average emission savings for fuel oil from upgrading to ENERGY STAR boiler/furnace | C82: =AVERAGE('Heating Equip Upgrade'!F12,'Heating Equip Upgrade'!F15) -> 400.4542666 | D82: lbs/year | F82: Calculations based on 2024 ENERGY STAR Data Book, Annual & Lifetime Savings from ENERGY STAR Certified Products | G82: 2024
B83: Annual energy cost savings from upgrading to ENERGY STAR boiler/furnace (gas or fuel oil) | C83: =AVERAGE('Heating Equip Upgrade'!G5,'Heating Equip Upgrade'!G8,'Heating Equip Upgrade'!G12,'Heating Equip Upgrade'!G15) -> 78.42045712 | D83: dollars | F83: Calculations based on 2024 ENERGY STAR Data Book, Annual & Lifetime Savings from ENERGY STAR Certified Products | G83: 2024
B84: Annual energy cost savings for natural gas from upgrading to ENERGY STAR boiler/furnace | C84: =AVERAGE('Heating Equip Upgrade'!G5,'Heating Equip Upgrade'!G8) -> 80.69845857 | F84: Calculations based on 2024 ENERGY STAR Data Book, Annual & Lifetime Savings from ENERGY STAR Certified Products | G84: 2024
B85: Annual energy cost savings for fuel oil from upgrading to ENERGY STAR boiler/furnace | C85: =AVERAGE('Heating Equip Upgrade'!G12,'Heating Equip Upgrade'!G15) -> 76.14245566 | F85: Calculations based on 2024 ENERGY STAR Data Book, Annual & Lifetime Savings from ENERGY STAR Certified Products | G85: 2024
B86: Average annual energy savings from switching single pane windows to low-e ENERGY STAR windows | C86: 25210000 | D86: BTUs | E86: Assumes 2000 square-foot house, 300 square feet of glass. Source: ENERGY STAR. Methodology based on RESFEN 3.1 calculations performed by Lawrence Berkeley National Laboratory (LBNL), 2005. | F86: ENERGY STAR. Savings estimates were generated using a methodology based on RESFEN 3.1 calculations performed by Lawrence Berkeley National Laboratory (LBNL) https://www.energystar.gov/index.cfm?c=windows_doors.pr_savemoney | G86: 2005
B87: Average annual energy cost savings from changing to ENERGY STAR windows | C87: 311 | D87: dollars | E87: Average of all regions equally weighted. Savings estimates are based on EnergyPlus 9.5 modeling for typical homes in 132 U.S. cities. "Typical Home" is 2376 square feet, two story, single-family home assumed to be the default new construction and existing construction assemblies in each location. Savings are for a whole-home replacment with ENERGY STAR Version 7.0 windows. | F87: 2024 ENERGY STAR Data Book, Figure on average savings when replacing windows by region. | G87: 2022
B88: Conversion Factors and Constants
B89: Ratio of CO2 to Carbon | C89: =44/12 -> 3.666666667 | D89: Ratio of CO2 to C, 44/12
B90: Btu per Quadrillion Btu | C90: =10^15 -> 1000000000000000 | D90: Btu/QBtu
B91: Conversion from teragrams to pounds | C91: 2204622620 | D91: lbs/teragram
B92: Conversion from metric tons to lbs | C92: 2204.62262 | D92: lbs / metric ton
B93: Conversion from thousand cubic feet of natural gas to therms | C93: =HHV_natural_gas/100000 -> 10.38 | D93: therms/thousand cf | E93: 1 therm = 100,000 Btu
B94: Conversion from liters to gallons | C94: 0.264172052 | D94: gallons/liter
B95: Energy content per 1000 cubic feet of natural gas | C95: =1038*1000 -> 1038000 | D95: Btu/1000 cf natural gas | G95: 2022
B96: Energy content per kWh of electricity | C96: 3412 | D96: Btu/kWh | F96: EIA Monthly Energy Review, June 2024. Appendix A6 Approximate Heat Rates for Electricity, and Heat Content of Electricity, https://www.eia.gov/totalenergy/data/monthly/pdf/mer.pdf | G96: 2024
B97: MMBtu per barrel of fuel oil | C97: =5771/1000 -> 5.771 | D97: MMBtu/barrel | F97: EIA Monthly Energy Review, June 2024. Appendix A3 Approximate Heat Content of Petroleum Consumption and Fuel Ethanol, Distillate Fuel Oil Consumption, https://www.eia.gov/totalenergy/data/monthly/pdf/mer.pdf | G97: 2024
B98: Fuel oil conversion - barrels per liter | C98: =1/0.159*0.001 -> 0.006289308176 | D98: barrels/L | E98: 1 barrel (bbl) = 0.159 cubic meters 1 liter = 0.001 cubic meters | F98: EPA Inventory of U.S. GHG Emissions and Sinks 1990-2022, Annex 6, Section 6.4 Constants, Units, and Conversions. https://www.epa.gov/ghgemissions/inventory-us-greenhouse-gas-emissions-and-sinks | G98: 2022
B99: Energy content per gallon of fuel oil | C99: =C97/C94*(C98)*1000000 -> 137393.7826 | D99: Btu/gallon fuel oil | F99: calculation
B100: MMBtu per barrel of propane | C100: =3841/1000 -> 3.841 | D100: MMBtu/barrel | F100: EIA Monthly Energy Review, June 2024. Appendix A1 Approximate Heat Content of Petroleum and Biofuels, https://www.eia.gov/totalenergy/data/monthly/pdf/mer.pdf | G100: 2022
B101: Propane conversion - barrels per liter | C101: =1/0.159*0.001 -> 0.006289308176 | D101: barrels/liter | E101: 1 barrel (bbl) = 0.159 cubic meters 1 liter = 0.001 cubic meters | F101: EPA Inventory of U.S. GHG Emissions and Sinks 1990-2022, Annex 6, Section 6.4 Constants, Units, and Conversions. https://www.epa.gov/ghgemissions/inventory-us-greenhouse-gas-emissions-and-sinks | G101: 2022
B102: Energy content per gallon of propane | C102: =C100/C94*(C101)*1000000 -> 91445.07347 | D102: Btu/gallon propane | F102: calculation
B103: Average members/household | C103: 2.51 | D103: people | F103: US Census Historical Households Tables, Table HH-6. Average Population Per Household and Family: 1940 to Present, average population per household for all households, 2021 (November 2021) https://www.census.gov/data/tables/time-series/demo/families/households.html | G103: 2021

Sheet EGRID_DATA
A1: ZIP (character) | B1: State | C1: Primary eGRID Subregion | D1: Subregion annual CO2e output emission rate (lb/MWh)
A2: 00001 | B2: AK | C2: AKMS | D2: =VLOOKUP(C2,EMISSION_FACTORS!$A$7:$F$33,6,0) -> 497.557 | G2: Zip_Code | H2: Vlookup (e_factor) | I2: Vlookup (e_factor)
A3: 00002 | B3: AK | C3: AKMS | D3: =VLOOKUP(C3,EMISSION_FACTORS!$A$7:$F$33,6,0) -> 497.557 | G3: ='Personal GHG Calculator'!F6 -> 0 | H3: =VLOOKUP(G3,e_factor,4,FALSE) ->  | I3: =H3/1000 -> 
A4: 00003 | B4: AK | C4: AKMS | D4: =VLOOKUP(C4,EMISSION_FACTORS!$A$7:$F$33,6,0) -> 497.557
A5: 00004 | B5: AK | C5: AKMS | D5: =VLOOKUP(C5,EMISSION_FACTORS!$A$7:$F$33,6,0) -> 497.557
A6: 00005 | B6: AK | C6: AKMS | D6: =VLOOKUP(C6,EMISSION_FACTORS!$A$7:$F$33,6,0) -> 497.557
A7: 00006 | B7: AK | C7: AKGD | D7: =VLOOKUP(C7,EMISSION_FACTORS!$A$7:$F$33,6,0) -> 1057.841
A8: 00007 | B8: AK | C8: AKMS | D8: =VLOOKUP(C8,EMISSION_FACTORS!$A$7:$F$33,6,0) -> 497.557
A9: 00008 | B9: AK | C9: AKMS | D9: =VLOOKUP(C9,EMISSION_FACTORS!$A$7:$F$33,6,0) -> 497.557
A10: 00009 | B10: AK | C10: AKMS | D10: =VLOOKUP(C10,EMISSION_FACTORS!$A$7:$F$33,6,0) -> 497.557
A11: 00010 | B11: AK | C11: AKMS | D11: =VLOOKUP(C11,EMISSION_FACTORS!$A$7:$F$33,6,0) -> 497.557
A12: 00011 | B12: AK | C12: AKGD | D12: =VLOOKUP(C12,EMISSION_FACTORS!$A$7:$F$33,6,0) -> 1057.841
A13: 00012 | B13: CA | C13: CAMX | D13: =VLOOKUP(C13,EMISSION_FACTORS!$A$7:$F$33,6,0) -> 499.278
A14: 00013 | B14: HI | C14: HIMS | D14: =VLOOKUP(C14,EMISSION_FACTORS!$A$7:$F$33,6,0) -> 1163.065
A15: 00014 | B15: AZ | C15: AZNM | D15: =VLOOKUP(C15,EMISSION_FACTORS!$A$7:$F$33,6,0) -> 779.382
A16: 00015 | B16: AZ | C16: AZNM | D16: =VLOOKUP(C16,EMISSION_FACTORS!$A$7:$F$33,6,0) -> 779.382
A17: 00016 | B17: CA | C17: CAMX | D17: =VLOOKUP(C17,EMISSION_FACTORS!$A$7:$F$33,6,0) -> 499.278
A18: 00017 | B18: CA | C18: CAMX | D18: =VLOOKUP(C18,EMISSION_FACTORS!$A$7:$F$33,6,0) -> 499.278
A19: 00018 | B19: CA | C19: CAMX | D19: =VLOOKUP(C19,EMISSION_FACTORS!$A$7:$F$33,6,0) -> 499.278
A20: 00019 | B20: CA | C20: CAMX | D20: =VLOOKUP(C20,EMISSION_FACTORS!$A$7:$F$33,6,0) -> 499.278
A21: 00020 | B21: CA | C21: CAMX | D21: =VLOOKUP(C21,EMISSION_FACTORS!$A$7:$F$33,6,0) -> 499.278
A22: 00022 | B22: CA | C22: CAMX | D22: =VLOOKUP(C22,EMISSION_FACTORS!$A$7:$F$33,6,0) -> 499.278
A23: 00026 | B23: CA | C23: CAMX | D23: =VLOOKUP(C23,EMISSION_FACTORS!$A$7:$F$33,6,0) -> 499.278
A24: 00027 | B24: CO | C24: RMPA | D24: =VLOOKUP(C24,EMISSION_FACTORS!$A$7:$F$33,6,0) -> 1131.733
A25: 00028 | B25: CA | C25: CAMX | D25: =VLOOKUP(C25,EMISSION_FACTORS!$A$7:$F$33,6,0) -> 499.278
A26: 00029 | B26: CA | C26: CAMX | D26: =VLOOKUP(C26,EMISSION_FACTORS!$A$7:$F$33,6,0) -> 499.278
A27: 00031 | B27: CA | C27: CAMX | D27: =VLOOKUP(C27,EMISSION_FACTORS!$A$7:$F$33,6,0) -> 499.278
A28: 00032 | B28: CA | C28: CAMX | D28: =VLOOKUP(C28,EMISSION_FACTORS!$A$7:$F$33,6,0) -> 499.278
A29: 00033 | B29: CA | C29: CAMX | D29: =VLOOKUP(C29,EMISSION_FACTORS!$A$7:$F$33,6,0) -> 499.278
A30: 00034 | B30: CA | C30: NWPP | D30: =VLOOKUP(C30,EMISSION_FACTORS!$A$7:$F$33,6,0) -> 605.872
A31: 00035 | B31: CA | C31: NWPP | D31: =VLOOKUP(C31,EMISSION_FACTORS!$A$7:$F$33,6,0) -> 605.872
A32: 00037 | B32: CA | C32: CAMX | D32: =VLOOKUP(C32,EMISSION_FACTORS!$A$7:$F$33,6,0) -> 499.278
A33: 00038 | B33: CA | C33: CAMX | D33: =VLOOKUP(C33,EMISSION_FACTORS!$A$7:$F$33,6,0) -> 499.278
A34: 00039 | B34: CA | C34: CAMX | D34: =VLOOKUP(C34,EMISSION_FACTORS!$A$7:$F$33,6,0) -> 499.278
A35: 00040 | B35: CA | C35: CAMX | D35: =VLOOKUP(C35,EMISSION_FACTORS!$A$7:$F$33,6,0) -> 499.278
A36: 00041 | B36: FL | C36: FRCC | D36: =VLOOKUP(C36,EMISSION_FACTORS!$A$7:$F$33,6,0) -> 816.893
A37: 00042 | B37: FL | C37: FRCC | D37: =VLOOKUP(C37,EMISSION_FACTORS!$A$7:$F$33,6,0) -> 816.893
A38: 00043 | B38: FL | C38: FRCC | D38: =VLOOKUP(C38,EMISSION_FACTORS!$A$7:$F$33,6,0) -> 816.893
A39: 00044 | B39: CA | C39: CAMX | D39: =VLOOKUP(C39,EMISSION_FACTORS!$A$7:$F$33,6,0) -> 499.278
A40: 00045 | B40: FL | C40: FRCC | D40: =VLOOKUP(C40,EMISSION_FACTORS!$A$7:$F$33,6,0) -> 816.893
A41: 00047 | B41: CA | C41: CAMX | D41: =VLOOKUP(C41,EMISSION_FACTORS!$A$7:$F$33,6,0) -> 499.278
A42: 00048 | B42: CA | C42: CAMX | D42: =VLOOKUP(C42,EMISSION_FACTORS!$A$7:$F$33,6,0) -> 499.278
A43: 00049 | B43: CA | C43: NWPP | D43: =VLOOKUP(C43,EMISSION_FACTORS!$A$7:$F$33,6,0) -> 605.872
A44: 00050 | B44: CA | C44: CAMX | D44: =VLOOKUP(C44,EMISSION_FACTORS!$A$7:$F$33,6,0) -> 499.278
A45: 00051 | B45: CA | C45: CAMX | D45: =VLOOKUP(C45,EMISSION_FACTORS!$A$7:$F$33,6,0) -> 499.278
A46: 00052 | B46: CA | C46: CAMX | D46: =VLOOKUP(C46,EMISSION_FACTORS!$A$7:$F$33,6,0) -> 499.278
A47: 00053 | B47: FL | C47: FRCC | D47: =VLOOKUP(C47,EMISSION_FACTORS!$A$7:$F$33,6,0) -> 816.893
A48: 00054 | B48: CA | C48: CAMX | D48: =VLOOKUP(C48,EMISSION_FACTORS!$A$7:$F$33,6,0) -> 499.278
A49: 00055 | B49: CA | C49: CAMX | D49: =VLOOKUP(C49,EMISSION_FACTORS!$A$7:$F$33,6,0) -> 499.278
A50: 00056 | B50: ID | C50: NWPP | D50: =VLOOKUP(C50,EMISSION_FACTORS!$A$7:$F$33,6,0) -> 605.872
A51: 00057 | B51: CA | C51: CAMX | D51: =VLOOKUP(C51,EMISSION_FACTORS!$A$7:$F$33,6,0) -> 499.278
A52: 00058 | B52: CA | C52: CAMX | D52: =VLOOKUP(C52,EMISSION_FACTORS!$A$7:$F$33,6,0) -> 499.278
A53: 00059 | B53: MN | C53: MROW | D53: =VLOOKUP(C53,EMISSION_FACTORS!$A$7:$F$33,6,0) -> 943.418
A54: 00060 | B54: MN | C54: MROW | D54: =VLOOKUP(C54,EMISSION_FACTORS!$A$7:$F$33,6,0) -> 943.418
A55: 00061 | B55: CA | C55: CAMX | D55: =VLOOKUP(C55,EMISSION_FACTORS!$A$7:$F$33,6,0) -> 499.278
A56: 00063 | B56: MT | C56: NWPP | D56: =VLOOKUP(C56,EMISSION_FACTORS!$A$7:$F$33,6,0) -> 605.872
A57: 00064 | B57: NM | C57: AZNM | D57: =VLOOKUP(C57,EMISSION_FACTORS!$A$7:$F$33,6,0) -> 779.382
A58: 00065 | B58: CA | C58: CAMX | D58: =VLOOKUP(C58,EMISSION_FACTORS!$A$7:$F$33,6,0) -> 499.278
A59: 00066 | B59: NM | C59: AZNM | D59: =VLOOKUP(C59,EMISSION_FACTORS!$A$7:$F$33,6,0) -> 779.382
A60: 00067 | B60: OK | C60: SPSO | D60: =VLOOKUP(C60,EMISSION_FACTORS!$A$7:$F$33,6,0) -> 975.253
A61: 00068 | B61: OR | C61: NWPP | D61: =VLOOKUP(C61,EMISSION_FACTORS!$A$7:$F$33,6,0) -> 605.872
A62: 00069 | B62: OR | C62: NWPP | D62: =VLOOKUP(C62,EMISSION_FACTORS!$A$7:$F$33,6,0) -> 605.872
A63: 00070 | B63: OR | C63: NWPP | D63: =VLOOKUP(C63,EMISSION_FACTORS!$A$7:$F$33,6,0) -> 605.872
A64: 00071 | B64: UT | C64: NWPP | D64: =VLOOKUP(C64,EMISSION_FACTORS!$A$7:$F$33,6,0) -> 605.872
A65: 00072 | B65: WA | C65: NWPP | D65: =VLOOKUP(C65,EMISSION_FACTORS!$A$7:$F$33,6,0) -> 605.872
A66: 00073 | B66: WA | C66: NWPP | D66: =VLOOKUP(C66,EMISSION_FACTORS!$A$7:$F$33,6,0) -> 605.872
A67: 00074 | B67: WA | C67: NWPP | D67: =VLOOKUP(C67,EMISSION_FACTORS!$A$7:$F$33,6,0) -> 605.872
A68: 00076 | B68: WA | C68: NWPP | D68: =VLOOKUP(C68,EMISSION_FACTORS!$A$7:$F$33,6,0) -> 605.872
A69: 00077 | B69: OR | C69: NWPP | D69: =VLOOKUP(C69,EMISSION_FACTORS!$A$7:$F$33,6,0) -> 605.872
A70: 00084 | B70: NC | C70: SRVC | D70: =VLOOKUP(C70,EMISSION_FACTORS!$A$7:$F$33,6,0) -> 625.874
A71: 00087 | B71: FL | C71: FRCC | D71: =VLOOKUP(C71,EMISSION_FACTORS!$A$7:$F$33,6,0) -> 816.893
A72: 00097 | B72: FL | C72: FRCC | D72: =VLOOKUP(C72,EMISSION_FACTORS!$A$7:$F$33,6,0) -> 816.893
A73: 00098 | B73: FL | C73: FRCC | D73: =VLOOKUP(C73,EMISSION_FACTORS!$A$7:$F$33,6,0) -> 816.893
A74: 00100 | B74: UT | C74: NWPP | D74: =VLOOKUP(C74,EMISSION_FACTORS!$A$7:$F$33,6,0) -> 605.872
A75: 00116 | B75: LA | C75: SRMV | D75: =VLOOKUP(C75,EMISSION_FACTORS!$A$7:$F$33,6,0) -> 803.658
A76: 00119 | B76: LA | C76: SRMV | D76: =VLOOKUP(C76,EMISSION_FACTORS!$A$7:$F$33,6,0) -> 803.658
A77: 00120 | B77: LA | C77: SRMV | D77: =VLOOKUP(C77,EMISSION_FACTORS!$A$7:$F$33,6,0) -> 803.658
A78: 00121 | B78: LA | C78: SRMV | D78: =VLOOKUP(C78,EMISSION_FACTORS!$A$7:$F$33,6,0) -> 803.658
A79: 00125 | B79: ME | C79: NEWE | D79: =VLOOKUP(C79,EMISSION_FACTORS!$A$7:$F$33,6,0) -> 540.48
A80: 00126 | B80: ME | C80: NEWE | D80: =VLOOKUP(C80,EMISSION_FACTORS!$A$7:$F$33,6,0) -> 540.48
A81: 00127 | B81: ME | C81: NEWE | D81: =VLOOKUP(C81,EMISSION_FACTORS!$A$7:$F$33,6,0) -> 540.48
A82: 00128 | B82: ME | C82: NEWE | D82: =VLOOKUP(C82,EMISSION_FACTORS!$A$7:$F$33,6,0) -> 540.48
A83: 00130 | B83: ME | C83: NEWE | D83: =VLOOKUP(C83,EMISSION_FACTORS!$A$7:$F$33,6,0) -> 540.48
A84: 00132 | B84: ME | C84: NEWE | D84: =VLOOKUP(C84,EMISSION_FACTORS!$A$7:$F$33,6,0) -> 540.48
A85: 00133 | B85: ME | C85: NEWE | D85: =VLOOKUP(C85,EMISSION_FACTORS!$A$7:$F$33,6,0) -> 540.48
A86: 00134 | B86: ME | C86: NEWE | D86: =VLOOKUP(C86,EMISSION_FACTORS!$A$7:$F$33,6,0) -> 540.48
A87: 00135 | B87: ME | C87: NEWE | D87: =VLOOKUP(C87,EMISSION_FACTORS!$A$7:$F$33,6,0) -> 540.48
A88: 00137 | B88: ME | C88: NEWE | D88: =VLOOKUP(C88,EMISSION_FACTORS!$A$7:$F$33,6,0) -> 540.48
A89: 00138 | B89: ME | C89: NEWE | D89: =VLOOKUP(C89,EMISSION_FACTORS!$A$7:$F$33,6,0) -> 540.48
A90: 00139 | B90: ME | C90: NEWE | D90: =VLOOKUP(C90,EMISSION_FACTORS!$A$7:$F$33,6,0) -> 540.48
A91: 00141 | B91: ME | C91: NEWE | D91: =VLOOKUP(C91,EMISSION_FACTORS!$A$7:$F$33,6,0) -> 540.48
A92: 00148 | B92: ME | C92: NEWE | D92: =VLOOKUP(C92,EMISSION_FACTORS!$A$7:$F$33,6,0) -> 540.48
A93: 00151 | B93: ME | C93: NEWE | D93: =VLOOKUP(C93,EMISSION_FACTORS!$A$7:$F$33,6,0) -> 540.48
A94: 00152 | B94: MD | C94: RFCE | D94: =VLOOKUP(C94,EMISSION_FACTORS!$A$7:$F$33,6,0) -> 660.311
A95: 00158 | B95: MA | C95: NEWE | D95: =VLOOKUP(C95,EMISSION_FACTORS!$A$7:$F$33,6,0) -> 540.48
A96: 00160 | B96: MN | C96: MROW | D96: =VLOOKUP(C96,EMISSION_FACTORS!$A$7:$F$33,6,0) -> 943.418
A97: 00161 | B97: MN | C97: MROW | D97: =VLOOKUP(C97,EMISSION_FACTORS!$A$7:$F$33,6,0) -> 943.418
A98: 00164 | B98: MN | C98: MROW | D98: =VLOOKUP(C98,EMISSION_FACTORS!$A$7:$F$33,6,0) -> 943.418
A99: 00165 | B99: MN | C99: MROW | D99: =VLOOKUP(C99,EMISSION_FACTORS!$A$7:$F$33,6,0) -> 943.418
A100: 00166 | B100: MN | C100: MROW | D100: =VLOOKUP(C100,EMISSION_FACTORS!$A$7:$F$33,6,0) -> 943.418
A101: 00168 | B101: NH | C101: NEWE | D101: =VLOOKUP(C101,EMISSION_FACTORS!$A$7:$F$33,6,0) -> 540.48
A102: 00172 | B102: NH | C102: NEWE | D102: =VLOOKUP(C102,EMISSION_FACTORS!$A$7:$F$33,6,0) -> 540.48
A103: 00173 | B103: NH | C103: NEWE | D103: =VLOOKUP(C103,EMISSION_FACTORS!$A$7:$F$33,6,0) -> 540.48
A104: 00174 | B104: NH | C104: NEWE | D104: =VLOOKUP(C104,EMISSION_FACTORS!$A$7:$F$33,6,0) -> 540.48
A105: 00176 | B105: NH | C105: NEWE | D105: =VLOOKUP(C105,EMISSION_FACTORS!$A$7:$F$33,6,0) -> 540.48
A106: 00177 | B106: NH | C106: NEWE | D106: =VLOOKUP(C106,EMISSION_FACTORS!$A$7:$F$33,6,0) -> 540.48
A107: 00179 | B107: NH | C107: NEWE | D107: =VLOOKUP(C107,EMISSION_FACTORS!$A$7:$F$33,6,0) -> 540.48
A108: 00180 | B108: NH | C108: NEWE | D108: =VLOOKUP(C108,EMISSION_FACTORS!$A$7:$F$33,6,0) -> 540.48
A109: 00181 | B109: NH | C109: NEWE | D109: =VLOOKUP(C109,EMISSION_FACTORS!$A$7:$F$33,6,0) -> 540.48
A110: 00182 | B110: NH | C110: NEWE | D110: =VLOOKUP(C110,EMISSION_FACTORS!$A$7:$F$33,6,0) -> 540.48
A111: 00183 | B111: NH | C111: NEWE | D111: =VLOOKUP(C111,EMISSION_FACTORS!$A$7:$F$33,6,0) -> 540.48
A112: 00184 | B112: NH | C112: NEWE | D112: =VLOOKUP(C112,EMISSION_FACTORS!$A$7:$F$33,6,0) -> 540.48
A113: 00185 | B113: NH | C113: NEWE | D113: =VLOOKUP(C113,EMISSION_FACTORS!$A$7:$F$33,6,0) -> 540.48
A114: 00188 | B114: TX | C114: ERCT | D114: =VLOOKUP(C114,EMISSION_FACTORS!$A$7:$F$33,6,0) -> 774.298
A115: 00195 | B115: WA | C115: NWPP | D115: =VLOOKUP(C115,EMISSION_FACTORS!$A$7:$F$33,6,0) -> 605.872
A116: 00197 | B116: AZ | C116: AZNM | D116: =VLOOKUP(C116,EMISSION_FACTORS!$A$7:$F$33,6,0) -> 779.382
A117: 00198 | B117: AK | C117: AKGD | D117: =VLOOKUP(C117,EMISSION_FACTORS!$A$7:$F$33,6,0) -> 1057.841
A118: 00199 | B118: AZ | C118: AZNM | D118: =VLOOKUP(C118,EMISSION_FACTORS!$A$7:$F$33,6,0) -> 779.382
A119: 00501 | B119: NY | C119: NYLI | D119: =VLOOKUP(C119,EMISSION_FACTORS!$A$7:$F$33,6,0) -> 1209.311
A120: 00544 | B120: NY | C120: NYLI | D120: =VLOOKUP(C120,EMISSION_FACTORS!$A$7:$F$33,6,0) -> 1209.311
A121: 00601 | B121: PR | C121: PRMS | D121: =VLOOKUP(C121,EMISSION_FACTORS!$A$7:$F$33,6,0) -> 1599.922
A122: 00602 | B122: PR | C122: PRMS | D122: =VLOOKUP(C122,EMISSION_FACTORS!$A$7:$F$33,6,0) -> 1599.922
A123: 00603 | B123: PR | C123: PRMS | D123: =VLOOKUP(C123,EMISSION_FACTORS!$A$7:$F$33,6,0) -> 1599.922
A124: 00604 | B124: PR | C124: PRMS | D124: =VLOOKUP(C124,EMISSION_FACTORS!$A$7:$F$33,6,0) -> 1599.922
A125: 00605 | B125: PR | C125: PRMS | D125: =VLOOKUP(C125,EMISSION_FACTORS!$A$7:$F$33,6,0) -> 1599.922
A126: 00606 | B126: PR | C126: PRMS | D126: =VLOOKUP(C126,EMISSION_FACTORS!$A$7:$F$33,6,0) -> 1599.922
A127: 00610 | B127: PR | C127: PRMS | D127: =VLOOKUP(C127,EMISSION_FACTORS!$A$7:$F$33,6,0) -> 1599.922
A128: 00611 | B128: PR | C128: PRMS | D128: =VLOOKUP(C128,EMISSION_FACTORS!$A$7:$F$33,6,0) -> 1599.922
A129: 00612 | B129: PR | C129: PRMS | D129: =VLOOKUP(C129,EMISSION_FACTORS!$A$7:$F$33,6,0) -> 1599.922
A130: 00613 | B130: PR | C130: PRMS | D130: =VLOOKUP(C130,EMISSION_FACTORS!$A$7:$F$33,6,0) -> 1599.922
A131: 00614 | B131: PR | C131: PRMS | D131: =VLOOKUP(C131,EMISSION_FACTORS!$A$7:$F$33,6,0) -> 1599.922
A132: 00616 | B132: PR | C132: PRMS | D132: =VLOOKUP(C132,EMISSION_FACTORS!$A$7:$F$33,6,0) -> 1599.922
A133: 00617 | B133: PR | C133: PRMS | D133: =VLOOKUP(C133,EMISSION_FACTORS!$A$7:$F$33,6,0) -> 1599.922
A134: 00622 | B134: PR | C134: PRMS | D134: =VLOOKUP(C134,EMISSION_FACTORS!$A$7:$F$33,6,0) -> 1599.922
A135: 00623 | B135: PR | C135: PRMS | D135: =VLOOKUP(C135,EMISSION_FACTORS!$A$7:$F$33,6,0) -> 1599.922
A136: 00624 | B136: PR | C136: PRMS | D136: =VLOOKUP(C136,EMISSION_FACTORS!$A$7:$F$33,6,0) -> 1599.922
A137: 00627 | B137: PR | C137: PRMS | D137: =VLOOKUP(C137,EMISSION_FACTORS!$A$7:$F$33,6,0) -> 1599.922
A138: 00631 | B138: PR | C138: PRMS | D138: =VLOOKUP(C138,EMISSION_FACTORS!$A$7:$F$33,6,0) -> 1599.922
A139: 00636 | B139: PR | C139: PRMS | D139: =VLOOKUP(C139,EMISSION_FACTORS!$A$7:$F$33,6,0) -> 1599.922
A140: 00637 | B140: PR | C140: PRMS | D140: =VLOOKUP(C140,EMISSION_FACTORS!$A$7:$F$33,6,0) -> 1599.922
A141: 00638 | B141: PR | C141: PRMS | D141: =VLOOKUP(C141,EMISSION_FACTORS!$A$7:$F$33,6,0) -> 1599.922
A142: 00641 | B142: PR | C142: PRMS | D142: =VLOOKUP(C142,EMISSION_FACTORS!$A$7:$F$33,6,0) -> 1599.922
A143: 00646 | B143: PR | C143: PRMS | D143: =VLOOKUP(C143,EMISSION_FACTORS!$A$7:$F$33,6,0) -> 1599.922
A144: 00647 | B144: PR | C144: PRMS | D144: =VLOOKUP(C144,EMISSION_FACTORS!$A$7:$F$33,6,0) -> 1599.922
A145: 00650 | B145: PR | C145: PRMS | D145: =VLOOKUP(C145,EMISSION_FACTORS!$A$7:$F$33,6,0) -> 1599.922
A146: 00652 | B146: PR | C146: PRMS | D146: =VLOOKUP(C146,EMISSION_FACTORS!$A$7:$F$33,6,0) -> 1599.922
A147: 00653 | B147: PR | C147: PRMS | D147: =VLOOKUP(C147,EMISSION_FACTORS!$A$7:$F$33,6,0) -> 1599.922
A148: 00656 | B148: PR | C148: PRMS | D148: =VLOOKUP(C148,EMISSION_FACTORS!$A$7:$F$33,6,0) -> 1599.922
A149: 00659 | B149: PR | C149: PRMS | D149: =VLOOKUP(C149,EMISSION_FACTORS!$A$7:$F$33,6,0) -> 1599.922
A150: 00660 | B150: PR | C150: PRMS | D150: =VLOOKUP(C150,EMISSION_FACTORS!$A$7:$F$33,6,0) -> 1599.922
A151: 00662 | B151: PR | C151: PRMS | D151: =VLOOKUP(C151,EMISSION_FACTORS!$A$7:$F$33,6,0) -> 1599.922
A152: 00664 | B152: PR | C152: PRMS | D152: =VLOOKUP(C152,EMISSION_FACTORS!$A$7:$F$33,6,0) -> 1599.922
A153: 00667 | B153: PR | C153: PRMS | D153: =VLOOKUP(C153,EMISSION_FACTORS!$A$7:$F$33,6,0) -> 1599.922
A154: 00669 | B154: PR | C154: PRMS | D154: =VLOOKUP(C154,EMISSION_FACTORS!$A$7:$F$33,6,0) -> 1599.922
A155: 00670 | B155: PR | C155: PRMS | D155: =VLOOKUP(C155,EMISSION_FACTORS!$A$7:$F$33,6,0) -> 1599.922
A156: 00674 | B156: PR | C156: PRMS | D156: =VLOOKUP(C156,EMISSION_FACTORS!$A$7:$F$33,6,0) -> 1599.922
A157: 00676 | B157: PR | C157: PRMS | D157: =VLOOKUP(C157,EMISSION_FACTORS!$A$7:$F$33,6,0) -> 1599.922
A158: 00677 | B158: PR | C158: PRMS | D158: =VLOOKUP(C158,EMISSION_FACTORS!$A$7:$F$33,6,0) -> 1599.922
A159: 00678 | B159: PR | C159: PRMS | D159: =VLOOKUP(C159,EMISSION_FACTORS!$A$7:$F$33,6,0) -> 1599.922
A160: 00680 | B160: PR | C160: PRMS | D160: =VLOOKUP(C160,EMISSION_FACTORS!$A$7:$F$33,6,0) -> 1599.922
A161: 00681 | B161: PR | C161: PRMS | D161: =VLOOKUP(C161,EMISSION_FACTORS!$A$7:$F$33,6,0) -> 1599.922
A162: 00682 | B162: PR | C162: PRMS | D162: =VLOOKUP(C162,EMISSION_FACTORS!$A$7:$F$33,6,0) -> 1599.922
A163: 00683 | B163: PR | C163: PRMS | D163: =VLOOKUP(C163,EMISSION_FACTORS!$A$7:$F$33,6,0) -> 1599.922
A164: 00685 | B164: PR | C164: PRMS | D164: =VLOOKUP(C164,EMISSION_FACTORS!$A$7:$F$33,6,0) -> 1599.922
A165: 00687 | B165: PR | C165: PRMS | D165: =VLOOKUP(C165,EMISSION_FACTORS!$A$7:$F$33,6,0) -> 1599.922
A166: 00688 | B166: PR | C166: PRMS | D166: =VLOOKUP(C166,EMISSION_FACTORS!$A$7:$F$33,6,0) -> 1599.922
A167: 00690 | B167: PR | C167: PRMS | D167: =VLOOKUP(C167,EMISSION_FACTORS!$A$7:$F$33,6,0) -> 1599.922
A168: 00692 | B168: PR | C168: PRMS | D168: =VLOOKUP(C168,EMISSION_FACTORS!$A$7:$F$33,6,0) -> 1599.922
A169: 00693 | B169: PR | C169: PRMS | D169: =VLOOKUP(C169,EMISSION_FACTORS!$A$7:$F$33,6,0) -> 1599.922
A170: 00694 | B170: PR | C170: PRMS | D170: =VLOOKUP(C170,EMISSION_FACTORS!$A$7:$F$33,6,0) -> 1599.922
A171: 00698 | B171: PR | C171: PRMS | D171: =VLOOKUP(C171,EMISSION_FACTORS!$A$7:$F$33,6,0) -> 1599.922
A172: 00703 | B172: PR | C172: PRMS | D172: =VLOOKUP(C172,EMISSION_FACTORS!$A$7:$F$33,6,0) -> 1599.922
A173: 00704 | B173: PR | C173: PRMS | D173: =VLOOKUP(C173,EMISSION_FACTORS!$A$7:$F$33,6,0) -> 1599.922
A174: 00705 | B174: PR | C174: PRMS | D174: =VLOOKUP(C174,EMISSION_FACTORS!$A$7:$F$33,6,0) -> 1599.922
A175: 00707 | B175: PR | C175: PRMS | D175: =VLOOKUP(C175,EMISSION_FACTORS!$A$7:$F$33,6,0) -> 1599.922
A176: 00714 | B176: PR | C176: PRMS | D176: =VLOOKUP(C176,EMISSION_FACTORS!$A$7:$F$33,6,0) -> 1599.922
A177: 00715 | B177: PR | C177: PRMS | D177: =VLOOKUP(C177,EMISSION_FACTORS!$A$7:$F$33,6,0) -> 1599.922
A178: 00716 | B178: PR | C178: PRMS | D178: =VLOOKUP(C178,EMISSION_FACTORS!$A$7:$F$33,6,0) -> 1599.922
A179: 00717 | B179: PR | C179: PRMS | D179: =VLOOKUP(C179,EMISSION_FACTORS!$A$7:$F$33,6,0) -> 1599.922
A180: 00718 | B180: PR | C180: PRMS | D180: =VLOOKUP(C180,EMISSION_FACTORS!$A$7:$F$33,6,0) -> 1599.922
A181: 00719 | B181: PR | C181: PRMS | D181: =VLOOKUP(C181,EMISSION_FACTORS!$A$7:$F$33,6,0) -> 1599.922
A182: 00720 | B182: PR | C182: PRMS | D182: =VLOOKUP(C182,EMISSION_FACTORS!$A$7:$F$33,6,0) -> 1599.922
A183: 00721 | B183: PR | C183: PRMS | D183: =VLOOKUP(C183,EMISSION_FACTORS!$A$7:$F$33,6,0) -> 1599.922
A184: 00723 | B184: PR | C184: PRMS | D184: =VLOOKUP(C184,EMISSION_FACTORS!$A$7:$F$33,6,0) -> 1599.922
A185: 00725 | B185: PR | C185: PRMS | D185: =VLOOKUP(C185,EMISSION_FACTORS!$A$7:$F$33,6,0) -> 1599.922
A186: 00726 | B186: PR | C186: PRMS | D186: =VLOOKUP(C186,EMISSION_FACTORS!$A$7:$F$33,6,0) -> 1599.922
A187: 00727 | B187: PR | C187: PRMS | D187: =VLOOKUP(C187,EMISSION_FACTORS!$A$7:$F$33,6,0) -> 1599.922
A188: 00728 | B188: PR | C188: PRMS | D188: =VLOOKUP(C188,EMISSION_FACTORS!$A$7:$F$33,6,0) -> 1599.922
A189: 00729 | B189: PR | C189: PRMS | D189: =VLOOKUP(C189,EMISSION_FACTORS!$A$7:$F$33,6,0) -> 1599.922
A190: 00730 | B190: PR | C190: PRMS | D190: =VLOOKUP(C190,EMISSION_FACTORS!$A$7:$F$33,6,0) -> 1599.922
A191: 00731 | B191: PR | C191: PRMS | D191: =VLOOKUP(C191,EMISSION_FACTORS!$A$7:$F$33,6,0) -> 1599.922
A192: 00732 | B192: PR | C192: PRMS | D192: =VLOOKUP(C192,EMISSION_FACTORS!$A$7:$F$33,6,0) -> 1599.922
A193: 00733 | B193: PR | C193: PRMS | D193: =VLOOKUP(C193,EMISSION_FACTORS!$A$7:$F$33,6,0) -> 1599.922
A194: 00734 | B194: PR | C194: PRMS | D194: =VLOOKUP(C194,EMISSION_FACTORS!$A$7:$F$33,6,0) -> 1599.922
A195: 00735 | B195: PR | C195: PRMS | D195: =VLOOKUP(C195,EMISSION_FACTORS!$A$7:$F$33,6,0) -> 1599.922
A196: 00736 | B196: PR | C196: PRMS | D196: =VLOOKUP(C196,EMISSION_FACTORS!$A$7:$F$33,6,0) -> 1599.922
A197: 00737 | B197: PR | C197: PRMS | D197: =VLOOKUP(C197,EMISSION_FACTORS!$A$7:$F$33,6,0) -> 1599.922
A198: 00738 | B198: PR | C198: PRMS | D198: =VLOOKUP(C198,EMISSION_FACTORS!$A$7:$F$33,6,0) -> 1599.922
A199: 00739 | B199: PR | C199: PRMS | D199: =VLOOKUP(C199,EMISSION_FACTORS!$A$7:$F$33,6,0) -> 1599.922
A200: 00740 | B200: PR | C200: PRMS | D200: =VLOOKUP(C200,EMISSION_FACTORS!$A$7:$F$33,6,0) -> 1599.922
... 4300 more rows

Sheet EMISSION_FACTORS
A3: 1. Subregion Output Emission Rates (eGRID2020)
A4: eGRID subregion acronym | B4: eGRID subregion name | C4: Total output emission rates | J4: Non-baseload output emission rates | Q4: Grid Gross Loss (%)
C5: lb/MWh | J5: lb/MWh
C6: CO2 | D6: CH4 | E6: N2O | F6: CO2e | G6: Annual NOX | H6: Ozone Season NOX | I6: SO2 | J6: CO2 | K6: CH4 | L6: N2O | M6: CO2e | N6: Annual NOX | O6: Ozone Season NOX | P6: SO2
A7: AKGD | B7: ASCC Alaska Grid | C7: 1052.114 | D7: 0.088 | E7: 0.012 | F7: 1057.841 | G7: 5.053 | H7: 5.434 | I7: 0.423 | J7: 1224.5 | K7: 0.123 | L7: 0.017 | M7: 1232.5 | N7: 7 | O7: 7.6 | P7: 0.583 | Q7: 0.05
A8: AKMS | B8: ASCC Miscellaneous | C8: 495.772 | D8: 0.023 | E8: 0.004 | F8: 497.557 | G8: 7.85 | H8: 7.257 | I8: 0.68 | J8: 1587.9 | K8: 0.069 | L8: 0.012 | M8: 1593.3 | N8: 25.4 | O8: 24.6 | P8: 2.185 | Q8: 0.05
A9: AZNM | B9: WECC Southwest | C9: 776.036 | D9: 0.051 | E9: 0.007 | F9: 779.382 | G9: 0.419 | H9: 0.441 | I9: 0.121 | J9: 1205.2 | K9: 0.065 | L9: 0.009 | M9: 1209.5 | N9: 0.7 | O9: 0.7 | P9: 0.162 | Q9: 0.051
A10: CAMX | B10: WECC California | C10: 497.443 | D10: 0.03 | E10: 0.004 | F10: 499.278 | G10: 0.467 | H10: 0.426 | I10: 0.03 | J10: 1055 | K10: 0.049 | L10: 0.006 | M10: 1058 | N10: 0.8 | O10: 0.7 | P10: 0.055 | Q10: 0.051
A11: ERCT | B11: ERCOT All | C11: 771.083 | D11: 0.049 | E11: 0.007 | F11: 774.298 | G11: 0.468 | H11: 0.487 | I11: 0.407 | J11: 1194.9 | K11: 0.067 | L11: 0.009 | M11: 1199.2 | N11: 0.9 | O11: 0.9 | P11: 0.665 | Q11: 0.051
A12: FRCC | B12: FRCC All | C12: 813.846 | D12: 0.048 | E12: 0.006 | F12: 816.893 | G12: 0.298 | H12: 0.306 | I12: 0.142 | J12: 1044.4 | K12: 0.056 | L12: 0.007 | M12: 1048 | N12: 0.4 | O12: 0.4 | P12: 0.208 | Q12: 0.051
A13: HIMS | B13: HICC Miscellaneous | C13: 1155.486 | D13: 0.124 | E13: 0.019 | F13: 1163.065 | G13: 7.187 | H13: 7.252 | I13: 3.069 | J13: 1619.2 | K13: 0.157 | L13: 0.025 | M13: 1629.6 | N13: 11.4 | O13: 11.9 | P13: 4.074 | Q13: 0.054
A14: HIOA | B14: HICC Oahu | C14: 1575.407 | D14: 0.163 | E14: 0.025 | F14: 1586.947 | G14: 3.874 | H14: 3.708 | I14: 6.353 | J14: 1810.3 | K14: 0.177 | L14: 0.028 | M14: 1822.9 | N14: 4.4 | O14: 4.2 | P14: 7.33 | Q14: 0.054
A15: MROE | B15: MRO East | C15: 1479.621 | D15: 0.133 | E15: 0.019 | F15: 1488.688 | G15: 0.978 | H15: 1.012 | I15: 0.306 | J15: 1672.9 | K15: 0.147 | L15: 0.021 | M15: 1682.8 | N15: 1.1 | O15: 1.2 | P15: 0.334 | Q15: 0.051
A16: MROW | B16: MRO West | C16: 936.485 | D16: 0.102 | E16: 0.015 | F16: 943.418 | G16: 0.758 | H16: 0.86 | I16: 0.907 | J16: 1794.7 | K16: 0.183 | L16: 0.026 | M16: 1807 | N16: 1.6 | O16: 1.6 | P16: 1.64 | Q16: 0.051
A17: NEWE | B17: NPCC New England | C17: 536.428 | D17: 0.063 | E17: 0.008 | F17: 540.48 | G17: 0.309 | H17: 0.283 | I17: 0.122 | J17: 923.3 | K17: 0.073 | L17: 0.01 | M17: 928.1 | N17: 0.5 | O17: 0.3 | P17: 0.249 | Q17: 0.051
A18: NWPP | B18: WECC Northwest | C18: 602.088 | D18: 0.056 | E18: 0.008 | F18: 605.872 | G18: 0.531 | H18: 0.519 | I18: 0.318 | J18: 1515.7 | K18: 0.134 | L18: 0.019 | M18: 1524.7 | N18: 1.5 | O18: 1.5 | P18: 0.79 | Q18: 0.051
A19: NYCW | B19: NPCC NYC/Westchester | C19: 885.233 | D19: 0.023 | E19: 0.003 | F19: 886.58 | G19: 0.248 | H19: 0.248 | I19: 0.028 | J19: 971.8 | K19: 0.021 | L19: 0.002 | M19: 973 | N19: 0.3 | O19: 0.3 | P19: 0.021 | Q19: 0.051
A20: NYLI | B20: NPCC Long Island | C20: 1200.708 | D20: 0.135 | E20: 0.018 | F20: 1209.311 | G20: 0.919 | H20: 0.857 | I20: 0.474 | J20: 1316.7 | K20: 0.039 | L20: 0.005 | M20: 1319.1 | N20: 0.9 | O20: 0.8 | P20: 0.654 | Q20: 0.051
A21: NYUP | B21: NPCC Upstate NY | C21: 274.559 | D21: 0.015 | E21: 0.002 | F21: 275.389 | G21: 0.113 | H21: 0.095 | I21: 0.043 | J21: 920.1 | K21: 0.043 | L21: 0.005 | M21: 922.5 | N21: 0.5 | O21: 0.3 | P21: 0.189 | Q21: 0.051
A22: PRMS | B22: Puerto Rico Miscellaneous | C22: 1593.481 | D22: 0.087 | E22: 0.014 | F22: 1599.922 | G22: 3.064 | H22: 3.062 | I22: 4.262 | J22: 1670.9 | K22: 0.074 | L22: 0.013 | M22: 1676.7 | N22: 3.5 | O22: 3.5 | P22: 5.578 | Q22: 0.051
A23: RFCE | B23: RFC East | C23: 657.386 | D23: 0.045 | E23: 0.006 | F23: 660.311 | G23: 0.275 | H23: 0.223 | I23: 0.302 | J23: 1278.7 | K23: 0.097 | L23: 0.013 | M23: 1285.1 | N23: 0.7 | O23: 0.6 | P23: 0.773 | Q23: 0.051
A24: RFCM | B24: RFC Michigan | C24: 1216.404 | D24: 0.116 | E24: 0.016 | F24: 1224.187 | G24: 0.638 | H24: 0.632 | I24: 0.931 | J24: 1597.3 | K24: 0.149 | L24: 0.021 | M24: 1607.4 | N24: 0.9 | O24: 0.8 | P24: 1.413 | Q24: 0.051
A25: RFCW | B25: RFC West | C25: 1000.053 | D25: 0.087 | E25: 0.012 | F25: 1005.904 | G25: 0.519 | H25: 0.424 | I25: 0.62 | J25: 1843.6 | K25: 0.178 | L25: 0.026 | M25: 1855.7 | N25: 1.1 | O25: 0.9 | P25: 1.18 | Q25: 0.051
A26: RMPA | B26: WECC Rockies | C26: 1124.887 | D26: 0.101 | E26: 0.014 | F26: 1131.733 | G26: 0.613 | H26: 0.64 | I26: 0.348 | J26: 1676.4 | K26: 0.129 | L26: 0.018 | M26: 1685.1 | N26: 0.9 | O26: 0.9 | P26: 0.43 | Q26: 0.051
A27: SPNO | B27: SPP North | C27: 952.575 | D27: 0.1 | E27: 0.014 | F27: 959.381 | G27: 0.536 | H27: 0.599 | I27: 0.16 | J27: 1943 | K27: 0.198 | L27: 0.029 | M27: 1956.5 | N27: 1.2 | O27: 1.2 | P27: 0.325 | Q27: 0.051
A28: SPSO | B28: SPP South | C28: 970.398 | D28: 0.072 | E28: 0.01 | F28: 975.253 | G28: 0.756 | H28: 0.836 | I28: 0.862 | J28: 1528.2 | K28: 0.105 | L28: 0.015 | M28: 1535.2 | N28: 1.3 | O28: 1.3 | P28: 1.291 | Q28: 0.051
A29: SRMV | B29: SERC Mississippi Valley | C29: 801.015 | D29: 0.04 | E29: 0.006 | F29: 803.658 | G29: 0.492 | H29: 0.525 | I29: 0.602 | J29: 1220.7 | K29: 0.073 | L29: 0.01 | M29: 1225.6 | N29: 0.9 | O29: 0.9 | P29: 1.407 | Q29: 0.051
A30: SRMW | B30: SERC Midwest | C30: 1369.887 | D30: 0.151 | E30: 0.022 | F30: 1380.154 | G30: 1.002 | H30: 0.746 | I30: 2.41 | J30: 1808.6 | K30: 0.186 | L30: 0.027 | M30: 1821.2 | N30: 1.4 | O30: 1.1 | P30: 3.244 | Q30: 0.051
A31: SRSO | B31: SERC South | C31: 893.29 | D31: 0.064 | E31: 0.009 | F31: 897.659 | G31: 0.389 | H31: 0.352 | I31: 0.151 | J31: 1354.8 | K31: 0.092 | L31: 0.013 | M31: 1361.1 | N31: 0.8 | O31: 0.6 | P31: 0.309 | Q31: 0.051
A32: SRTV | B32: SERC Tennessee Valley | C32: 933.067 | D32: 0.082 | E32: 0.012 | F32: 938.625 | G32: 0.394 | H32: 0.366 | I32: 0.537 | J32: 1671 | K32: 0.152 | L32: 0.022 | M32: 1681.3 | N32: 0.7 | O32: 0.6 | P32: 0.968 | Q32: 0.051
A33: SRVC | B33: SERC Virginia/Carolina | C33: 622.987 | D33: 0.047 | E33: 0.007 | F33: 625.874 | G33: 0.308 | H33: 0.313 | I33: 0.157 | J33: 1308.8 | K33: 0.099 | L33: 0.014 | M33: 1315.1 | N33: 0.7 | O33: 0.7 | P33: 0.351 | Q33: 0.051
A34: U.S. | C34: 823.149 | D34: 0.066 | E34: 0.009 | F34: 827.52 | G34: 0.504 | H34: 0.485 | I34: 0.473 | J34: 1405.3 | K34: 0.107 | L34: 0.015 | M34: 1412.5 | N34: 1 | O34: 0.9 | P34: 0.838 | Q34: 0.051
A37: US Total | F37: =F34 -> 827.52

Sheet WASTE
A1: Waste Assumption Calculations
A3: Source: EPA, Documentation for Greenhouse Gas Emission and Energy Factors Used in the Waste Reduction Model (WARM) 16, Containers, Packaging, and Non-Durable Good Materials Chapters, (Dec 2023) https://www.epa.gov/system/files/documents/2023-12/warm_containers_packaging_and_non-durable_goods_materials_v16_dec.pdf
A4: ERG notes: | B4: WARM model has been updated since the last version of this calculator. Below data is from v16. Data from WARM v16 was reported to the second decimal, which is how new data was entered.
A5: Material | B5: GHG Emissions per Short Ton of Material Recycled (MTCO2E) | C5: GHG Emissions per Ton of Material Landfilled (MTCO2E)
A6: Glass | B6: -0.2760901765 | C6: 0.02025451914 | D6: Exhibit 1-4: Net Emissions for Glass under Each Materials Management Option (MTCO2E/Short Ton)
A7: Newspaper | B7: -2.708271528 | C7: -0.85 | D7: Exhibit 3-7: Net Emissions for Paper Products under Each Materials Management Option (MTCO2E/Short Ton)
A8: Magazines/third-class mail | B8: -3.06969994 | C8: -0.43 | D8: Exhibit 3-7: Net Emissions for Paper Products under Each Materials Management Option (MTCO2E/Short Ton)
A9: Mixed Metals | B9: -4.391160674 | C9: 0.02025451914 | D9: Exhibit 2-7: Net Emissions for Metals under Each Materials Management Option (MTCO2E/Short Ton)
A10: Mixed Plastics | B10: -0.93 | C10: 0.02025451914 | D10: Exhibit 5-3: Net Emissions for Plastics under Each Materials Management Option (MTCO2E/Short Ton)
A12: Source: EPA, Advancing Sustainable Materials Management: 2018 Tables and Figures (December 2020) https://www.epa.gov/facts-and-figures-about-materials-waste-and-recycling/advancing-sustainable-materials-management
A13: ERG notes: | B13: EPA has not released a new Advancing Sustainable Materials Management: Fact and Figures Fact Sheet since 2020, which is based on 2018 data.
A14: Material | B14: Amount of Waste Generated in 2018 (thousand tons) | C14: Amount of Waste Generated in 2018 (tons)
A15: Total Aluminum Packaging | B15: 1920 | C15: =B15*$B$26 -> 1920000 | D15: Table 7. Metal Products in MSW, 2018
A16: Total Steel Packaging | B16: 2210 | C16: 2210000 | D16: Table 7. Metal Products in MSW, 2018
A17: Total Metals in Containers and Packaging | B17: =B15+B16 -> 4130 | C17: 4130000 | D17: Calculation based on Table 7. Metal Products in MSW, 2018
A18: PET (Total Plastics in MSW, by resin) | B18: 5290 | C18: 5290000 | D18: Table 8. Plastics in Products In MSW, 2018
A19: HDPE | B19: 6300 | C19: 6300000 | D19: Table 8. Plastics in Products In MSW, 2018
A20: Total Plastics in MSW (PET and HDPE) | B20: =B18+B19 -> 11590 | C20: 11590000 | D20: Calculation based on Table 8. Plastics in Products In MSW, 2018
A21: Total Glass Containers (exclude durable goods) | B21: 9790 | C21: 9790000 | D21: Table 6. Glass Products in MSW, 2018
A22: Newspapers/Mechanical Papers | B22: 5050 | C22: 5050000 | D22: Table 5. Paper and Paperboard Products In MSW, 2018
A23: Magazines | B23: 980 | C23: 980000 | D23: Table 5. Paper and Paperboard Products In MSW, 2018
A24: Marketing Mail | B24: 3670 | C24: 3670000 | D24: Table 5. Paper and Paperboard Products In MSW, 2018
A26: thousand tons to tons | B26: 1000
A27: lbs/metric ton | B27: 2204.6
A28: Population (rounded), 2022 | B28: 333000000
A30: Source: EPA Inventory of U.S. Greenhouse Gas Emissions and Sinks: 1990-2022, Chapter 7 (Waste), Table 7-1: Emissions from Waste (MMT CO2 eq), CH4 and N2O emissions from Landfills and Composting (excludes wastewater treatment), https://www.epa.gov/ghgemissions/inventory-us-greenhouse-gas-emissions-and-sinks and U.S. Census Bureau, accessed July 26, 2022, https://www.census.gov/popclock/
A31: Average lbs CO2 equivalent generated from waste per person per year
A32: ERG notes: | B32: Updated data from the 1990-2022 report.
A33: emissions from waste, U.S. total | B33: =SUM(B34:B36) -> 124.2 | C33: MMT CO2e
A34: CH4 from landfills | B34: 119.8 | C34: MMT CO2e
A35: CH4 from composting | B35: 2.6 | C35: MMT CO2e
A36: N2O from composting | B36: 1.8 | C36: MMT CO2e
A37: emissions from waste per capita, U.S. total | B37: =(B33*10^6*B27)/B28 -> 822.2562162 | C37: Ibs CO2E/person/year | D37: Calculation
A39: Average number of pounds of CO2 equivalent per person per year that could be saved by recycling metal
A40: emissions saved by recycling | B40: =C17*B9 -> -18135493.58 | C40: MTCO2E/yr
A41: emissions avoided by recycling instead of landfilling | B41: =C17*C9 -> 83651.16405 | C41: MTCO2E/yr
A42: net emissions savings | B42: =((B40-B41)*$B$27)/$B$28 -> -120.6183979 | C42: Ibs CO2E/yr/person
A44: Average number of pounds of CO2 equivalent per person per year that could be saved by recycling plastic
A45: emissions saved by recycling | B45: =C20*B10 -> -10778700 | C45: MTCO2E/yr
A46: emissions avoided by recycling instead of landfilling | B46: =C20*C10 -> 234749.8768 | C46: MTCO2E/yr
A47: net emissions savings | B47: =((B45-B46)*$B$27)/$B$28 -> -72.91366846 | C47: Ibs CO2E/yr/person
A49: Average number of pounds of CO2 equivalent per person per year that could be saved by recycling glass
A50: emissions saved by recycling | B50: =C21*B6 -> -2702922.828 | C50: MTCO2E/yr
A51: emissions avoided by recycling instead of landfilling | B51: =C21*C6 -> 198291.7424 | C51: MTCO2E/yr
A52: net emissions savings | B52: =((B50-B51)*$B$27)/$B$28 -> -19.20726018 | C52: Ibs CO2E/yr/person
A54: Average number of pounds of CO2 equivalent per person per year that could be saved by recycling newspaper
A55: emissions saved by recycling | B55: =C22*B7 -> -13676771.22 | C55: MTCO2E/yr
A56: emissions avoided by recycling instead of landfilling | B56: =C22*C7 -> -4292500 | C56: MTCO2E/yr
A57: net emissions savings | B57: =((B55+B56)*$B$27)/$B$28 -> -118.9641301 | C57: Ibs CO2E/yr/person
A59: Average number of pounds of CO2 equivalent per person per year that could be saved by recycling magazines
A60: emissions saved by recycling | B60: =C24*B8 -> -11265798.78 | C60: MTCO2E/yr
A61: emissions avoided by recycling instead of landfilling | B61: =C24*C8 -> -1578100 | C61: MTCO2E/yr
A62: net emissions savings | B62: =((B60+B61)*$B$27)/$B$28 -> -85.03200975 | C62: Ibs CO2E/yr/person

Sheet Heating Equip Upgrade
B2: Emission & cost savings from replacing boiler/furnace - Natural Gas | I2: Natural gas emission factor | J2: =EF_natural_gas_therm -> 11.66465828 | K2: lbs CO2 / therm
B3: Gas Furnace | C3: Mbtu per year | E3: Savings per year | J3: =EF_natural_gas_therm*'Heating Equip Upgrade'!$J$11 -> 116.6465828 | K3: lbs CO2 / MBtu
B4: Replacing a 15 year old standard 80 AFUE boiler or 78 AFUE furnace with current ENERGY STAR boiler at 90 AFUE or Furnace at 95 AFUE in the North and 90 AFUE in the South | C4: Conventional | D4: ENERGY STAR | E4: Difference in Mbtu | F4: pounds CO2 | G4: $ | I4: Residential Natural Gas Rate | J4: =Natural_gas_cost_1000CF -> 15.23 | K4: $/1000 cubic feet
C5: 34.8 | D5: 30 | E5: =C5-D5 -> 4.8 | F5: =E5*$J$3 -> 559.9035976 | G5: =E5*$J$5 -> 70.42774566 | J5: =Natural_gas_cost_1000CF/'Heating Equip Upgrade'!$J$12*1000 -> 14.67244701 | K5: $/MMBtu
B6: Gas Boiler | I6: Fuel oil emission factor | J6: =EF_fuel_oil_MMBtu -> 163.450721 | K6: lbs CO2/MMBtu
B7: Replacing a 15 year old standard 80 AFUE boiler or 78 AFUE furnace with current ENERGY STAR boiler at 90 AFUE or Furnace at 95 AFUE in the North and 90 AFUE in the South | C7: Conventional | D7: ENERGY STAR | E7: Difference in Mbtu | F7: pounds CO2 | G7: $ | I7: Fuel oil cost | J7: =fuel_oil_cost -> 4.27 | K7: dollars/gallon
C8: 74.8 | D8: 68.6 | E8: =C8-D8 -> 6.2 | F8: =E8*$J$3 -> 723.2088135 | G8: =E8*$J$5 -> 90.96917148 | J8: =J7/$J$14 -> 31.07855333 | K8: $/MMBtu
B9: Emission & cost savings from replacing boiler/furnace - Fuel Oil
B10: Oil Furnace | C10: Mbtu per year | E10: Savings per year
B11: Replacing a 20 year old standard 80 AFUE boiler or 78 AFUE furnace with current ENERGY STAR boiler at 87 AFUE or Furnace at 85 AFUE | C11: Conventional | D11: ENERGY STAR | E11: Difference in Mbtu | F11: pounds CO2 | G11: $ | J11: 10 | K11: therm to MBtu
C12: 67.3 | D12: 64.9 | E12: =C12-D12 -> 2.4 | F12: =E12*$J$6 -> 392.2817305 | G12: =E12*OilFuelRate -> 74.58852799 | J12: =BTU_per_1000cf_NG/1000 -> 1038 | K12: heat content of natural gas (MBtu per 1000 cf)
B13: Oil Boiler | J13: =BTU_per_gallon_FO -> 137393.7826 | K13: heat content of fuel oil (Btu/gallon fuel oil)
B14: Replacing a 20 year old standard 80 AFUE boiler or 78 AFUE furnace with current ENERGY STAR boiler at 87 AFUE or Furnace at 85 AFUE | C14: Conventional | D14: ENERGY STAR | E14: Difference in Mbtu | F14: pounds CO2 | G14: $ | J14: =J13/1000000 -> 0.1373937826 | K14: heat content of fuel oil (MMBtu/gallon fuel oil)
C15: 78.9 | D15: 76.4 | E15: =C15-D15 -> 2.5 | F15: =E15*$J$6 -> 408.6268026 | G15: =E15*OilFuelRate -> 77.69638332
B18: Source: 2024 ENERGY STAR Data Book, Annual & Lifetime Savings from ENERGY STAR Certified Products

Sheet Clothes Washer (hidden)
A2: Source: Department of Energy Technical Support Document, developed for the current clothes washer federal standard (2012)

Sheet Sheet1 (hidden)
A1: AC_electricity_percent | B1: =Assumptions!$C$66 -> 0.1944756344
A2: Average_elec_CO2_emissions | B2: =Assumptions!$C$26 -> 8743.57632
A3: Average_FO_CO2_emissions | B3: =Assumptions!$C$35 -> 11385.75621
A4: average_mpg | B4: =Assumptions!$C$7 -> 24.8
A5: average_waste_emissions | B5: =Assumptions!$C$47 -> 822.2562162
A6: boiler_replacement_cost_savings | B6: =Assumptions!$C$83 -> 78.42045712
A7: boiler_replacement_savings_FO | B7: =Assumptions!$C$82 -> 400.4542666
A8: boiler_replacement_savings_NG | B8: =Assumptions!$C$81 -> 641.5562055
A9: BTU_per_1000cf_NG | B9: =Assumptions!$C$95 -> 1038000
A10: BTU_per_gallon_FO | B10: =Assumptions!$C$99 -> 137393.7826
A11: BTU_per_gallon_propane | B11: =Assumptions!$C$102 -> 91445.07347
A12: BTU_per_kWh | B12: =Assumptions!$C$96 -> 3412
A13: CO2_C_ratio | B13: =Assumptions!$C$89 -> 3.666666667
A14: computer_energy_monitor_off | B14: =Assumptions!$C$72 -> 34
A15: computer_energy_off | B15: =Assumptions!$CV70 -> 0
A16: computer_energy_sleep_monitor_off | B16: =Assumptions!$C$71 -> 16
A17: computer_energy_sleep_off | B17: =Assumptions!$C$69 -> 27
A18: computer_sleep_savings | B18: =Assumptions!$C$68 -> 43
A19: conventional_fridge_kWh | B19: =Assumptions!$C$79 -> 617.391
A20: conversion_1000cf_to_therm | B20: =Assumptions!$C$93 -> 10.38
A21: conversion_QBtu_to_Btu | B21: =Assumptions!$C$90 -> 1000000000000000
A22: conversion_Tg_to_lb | B22: =Assumptions!$C$91 -> 2204622620
A23: cost_per_kWh | B23: =Assumptions!$C$24 -> 0.1609
A24: cost_per_mile | B24: =Assumptions!$C$57 -> 0.1792
A25: dryer_energy | B25: =Assumptions!$C$74 -> 769
A26: e_factor
A27: e_factor_value
A28: EF_fuel_oil_gallon | B28: =Assumptions!$C$33 -> 22.45711284
A29: EF_fuel_oil_MMBtu | B29: =Assumptions!C34 -> 163.450721
A30: EF_natural_gas | B30: =Assumptions!$C$18 -> 121.079153
A31: EF_natural_gas_therm | B31: =Assumptions!$C$17 -> 11.66465828
A32: EF_passenger_vehicle | B32: =Assumptions!$C$5 -> 19.37
A33: EF_propane | B33: =Assumptions!$C$42 -> 12.67739806
A34: ENERGYSTAR_fridge_kWh | B34: =Assumptions!$C$78 -> 488
A35: fridge_replacement_kWh_savings | B35: =Assumptions!$C$80 -> 129.391
A36: fuel_oil_cost | B36: =Assumptions!$C$31 -> 4.27
A37: gas_cost_gallon | B37: =Assumptions!$C$59 -> 3.685
A38: glass_recycling_avoided_emissions | B38: =Assumptions!$C$50 -> -19.20726018
A39: green_power_premium | B39: =Assumptions!$C$75 -> 0.0158
A40: heating_percent_electricity | B40: =Assumptions!$C$63 -> 0.1235122389
A41: heating_percent_fuel_oil | B41: =Assumptions!$C$64 -> 0.7954545455
A42: heating_percent_NG | B42: =Assumptions!$C$62 -> 0.6807356755
A43: heating_percent_propane | B43: =Assumptions!$C$65 -> 0.7007672634
A44: HH_size | B44: =Assumptions!$C$103 -> 2.51
A45: HHV_fuel_oil | B45: =Assumptions!$C$99 -> 137393.7826
A46: HHV_natural_gas | B46: =Assumptions!$C$95 -> 1038000
A47: HHV_propane | B47: =Assumptions!$C$102 -> 91445.07347
A48: kWh_per_load_laundry | B48: =Assumptions!$C$73 -> 0.96
A49: lamp_cost_savings | B49: =Assumptions!$C$77 -> 5
A50: lamp_kWh_savings | B50: =Assumptions!$C$76 -> 37
A51: mag_recycling_avoided_emissions | B51: =Assumptions!$C$52 -> -85.03200975
A52: metal_recycling_avoided_emissions | B52: =Assumptions!$C$48 -> -120.6183979
A53: monthly_elec_consumption | B53: =Assumptions!$C$23 -> 880.5
A54: monthly_FO_consumption | B54: =Assumptions!$C$30 -> 42.25
A55: monthly_NG_Consumption | B55: =Assumptions!$C$13 -> 4716.666667
A56: monthly_propane_consumption | B56: =Assumptions!$C$39 -> 32.25
A57: Natural_gas_cost_1000CF | B57: =Assumptions!$C$14 -> 15.23
A58: Natural_gas_cost_therm | B58: =Assumptions!$C$15 -> 1.467244701
A59: newspaper_recycling_avoided_emissions | B59: =Assumptions!$C$51 -> -118.9641301
A60: NG_CO2_annual_emissions | B60: =Assumptions!$C$19 -> 6853.080058
A61: nonCO2_vehicle_emissions_ratio | B61: =Assumptions!$C$6 -> 1.013684744
A62: OilFuelRate | B62: ='Heating Equip Upgrade'!J6 -> 163.450721
A63: plastic_recycling_avoided_emissions | B63: =Assumptions!$C$49 -> -72.91366846
A64: propane_cost | B64: =Assumptions!$C$40 -> 2.559
A65: thermostat_cooling_savings | B65: =Assumptions!$C$67 -> 0.06
A66: thermostat_heating_savings | B66: =Assumptions!$C$61 -> 0.03
A67: vehicle_efficiency_improvements | B67: =Assumptions!$C$58 -> 0.016
A68: window_replacement_cost_savings | B68: =Assumptions!$C$87 -> 311
A69: window_replacement_energy_savings | B69: =Assumptions!$C$86 -> 25210000
